Workbook

Sheet Futtermittel
D5: TM | E5: Rohprotein | F5: nutzbares | G5: Rohfaser | H5: ME | I5: Ca | J5: P | K5: Euro
E6: XP | F6: XP (nXP) | G6: XF
B7: Nr: | C7: FUTTERMITTEL | D7: g | E7: g in TM | F7: g in TM | G7: g in TM | H7: MJ in TM | I7: g in TM | J7: g in TM | K7: € / dt | T7: Nr:
C9: I. Grünfutter
C11: Grünland, 4 und mehr Nutzungen,
C12: grasreich (untergrasbetont)
B13: =IF(D13="","",COUNTA($D$13:D13)) -> 1 | C13: Grünland 1. Aufwuchs Beg. Ähren-/Rispenschieben | D13: 170 | E13: 224 | F13: 153 | G13: 206 | H13: 11.47 | I13: 5.9 | J13: 4.4 | K13: 1.4 | T13: =IF(D13="","",COUNTA($D$13:D13)) -> 1
B14: =IF(D14="","",COUNTA($D$13:D14)) -> 2 | C14: Grünland 1. Aufwuchs volles Ähren-/Rispenschieben | D14: 180 | E14: 206 | F14: 150 | G14: 233 | H14: 10.94 | I14: 6.1 | J14: 3.9 | K14: 1.4 | T14: =IF(D14="","",COUNTA($D$13:D14)) -> 2
B15: =IF(D15="","",COUNTA($D$13:D15)) -> 3 | C15: Grünland 2. u. folg. Aufwüchse 4-6 Wochen | D15: 180 | E15: 211 | F15: 144 | G15: 228 | H15: 10.22 | I15: 6.1 | J15: 3.9 | K15: 1.4 | T15: =IF(D15="","",COUNTA($D$13:D15)) -> 3
B16: =IF(D16="","",COUNTA($D$13:D16)) ->  | C16: Grünland 2-3 Nutzungen, grasreich (obergrasbetont) | T16: =IF(D16="","",COUNTA($D$13:D16)) -> 
B17: =IF(D17="","",COUNTA($D$13:D17)) -> 4 | C17: Grünland 1. Aufwuchs volles Ähren-/Rispenschieben | D17: 180 | E17: 150 | F17: 139 | G17: 244 | H17: 10.44 | I17: 6.1 | J17: 3.9 | K17: 1.4 | T17: =IF(D17="","",COUNTA($D$13:D17)) -> 4
B18: =IF(D18="","",COUNTA($D$13:D18)) -> 5 | C18: Grünland 2. u. folg. Aufwüchse 4-6 Wochen | D18: 200 | E18: 165 | F18: 135 | G18: 245 | H18: 10 | I18: 6.5 | J18: 4 | K18: 1.4 | T18: =IF(D18="","",COUNTA($D$13:D18)) -> 5
B19: =IF(D19="","",COUNTA($D$13:D19)) ->  | C19: Grünland, 2-3 Nutzungen, klee- und kräuterreich | T19: =IF(D19="","",COUNTA($D$13:D19)) -> 
B20: =IF(D20="","",COUNTA($D$13:D20)) -> 6 | C20: Grünland 1. Aufwuchs Beginn Ähren-/Rispenschieben | D20: 160 | E20: 181 | F20: 150 | G20: 188 | H20: 11.5 | I20: 10 | J20: 3.8 | K20: 1.4 | T20: =IF(D20="","",COUNTA($D$13:D20)) -> 6
B21: =IF(D21="","",COUNTA($D$13:D21)) -> 7 | C21: Grünland 1. Aufwuchs volles Ähren-/Rispenschieben | D21: 180 | E21: 172 | F21: 144 | G21: 228 | H21: 10.78 | I21: 10 | J21: 3.9 | K21: 1.4 | T21: =IF(D21="","",COUNTA($D$13:D21)) -> 7
B22: =IF(D22="","",COUNTA($D$13:D22)) -> 8 | C22: Grünland 2. u. folg. Aufwüchse unter 4 Wochen | D22: 170 | E22: 202 | F22: 154 | G22: 187 | H22: 11.27 | I22: 11 | J22: 3.5 | K22: 1.4 | T22: =IF(D22="","",COUNTA($D$13:D22)) -> 8
B23: =IF(D23="","",COUNTA($D$13:D23)) -> 9 | C23: Grünland 2. u. folg. Aufwüchse 4-6 Wochen | D23: 190 | E23: 184 | F23: 142 | G23: 226 | H23: 10.44 | I23: 9.5 | J23: 3.7 | K23: 1.4 | T23: =IF(D23="","",COUNTA($D$13:D23)) -> 9
B24: =IF(D24="","",COUNTA($D$13:D24)) ->  | C24: Rotklee-Gras-Gemenge | T24: =IF(D24="","",COUNTA($D$13:D24)) -> 
B25: =IF(D25="","",COUNTA($D$13:D25)) -> 10 | C25: Rotklee-Gras-Gemenge 1. Aufwuchs in der Knospe | D25: 170 | E25: 176 | F25: 141 | G25: 224 | H25: 10.53 | I25: 10.6 | J25: 3.5 | K25: 1.4 | T25: =IF(D25="","",COUNTA($D$13:D25)) -> 10
B26: =IF(D26="","",COUNTA($D$13:D26)) -> 11 | C26: Rotklee-Gras-Gemenge 1. Aufwuchs Beginn der Blüte | D26: 200 | E26: 155 | F26: 135 | G26: 260 | H26: 9.85 | I26: 10.5 | J26: 3.5 | K26: 1.4 | T26: =IF(D26="","",COUNTA($D$13:D26)) -> 11
B27: =IF(D27="","",COUNTA($D$13:D27)) -> 12 | C27: Rotklee-Gras-Gemenge 2. u. folg. Aufwüchse in der Knospe | D27: 210 | E27: 190 | F27: 138 | G27: 224 | H27: 10.1 | I27: 11.4 | J27: 4.3 | K27: 1.4 | T27: =IF(D27="","",COUNTA($D$13:D27)) -> 12
B28: =IF(D28="","",COUNTA($D$13:D28)) -> 13 | C28: Rotklee-Gras-Gemenge 2. u. folg. Aufwüchse Beginn der Blüte | D28: 240 | E28: 171 | F28: 129 | G28: 258 | H28: 9.42 | I28: 11.3 | J28: 3.8 | K28: 1.4 | T28: =IF(D28="","",COUNTA($D$13:D28)) -> 13
B29: =IF(D29="","",COUNTA($D$13:D29)) ->  | T29: =IF(D29="","",COUNTA($D$13:D29)) -> 
B30: =IF(D30="","",COUNTA($D$13:D30)) ->  | C30: II. Silagen | T30: =IF(D30="","",COUNTA($D$13:D30)) -> 
B31: =IF(D31="","",COUNTA($D$13:D31)) ->  | T31: =IF(D31="","",COUNTA($D$13:D31)) -> 
B32: =IF(D32="","",COUNTA($D$13:D32)) ->  | C32: Grassilage (grasreich) | T32: =IF(D32="","",COUNTA($D$13:D32)) -> 
B33: =IF(D33="","",COUNTA($D$13:D33)) -> 14 | C33: Grassilage 1. Aufwuchs Beg. Ähren-/Rispenschieben | D33: 350 | E33: 165 | F33: 146 | G33: 221 | H33: 11.09 | I33: 6 | J33: 4 | K33: 3.5 | T33: =IF(D33="","",COUNTA($D$13:D33)) -> 14
B34: =IF(D34="","",COUNTA($D$13:D34)) -> 15 | C34: Grassilage 1. Aufwuchs volles Ähren-Rispenschieben | D34: 350 | E34: 148 | F34: 131 | G34: 264 | H34: 9.91 | I34: 6 | J34: 3.7 | K34: 3.5 | T34: =IF(D34="","",COUNTA($D$13:D34)) -> 15
B35: =IF(D35="","",COUNTA($D$13:D35)) -> 16 | C35: Grassilage 1. Aufwuchs Beginn der Blüte | D35: 350 | E35: 130 | F35: 129 | G35: 299 | H35: 9.73 | I35: 5.7 | J35: 3.7 | K35: 3.5 | T35: =IF(D35="","",COUNTA($D$13:D35)) -> 16
B36: =IF(D36="","",COUNTA($D$13:D36)) -> 17 | C36: Grassilage 1. Aufwuchs Mitte bis Ende der Blüte | D36: 350 | E36: 110 | F36: 120 | G36: 334 | H36: 9.2 | I36: 5.7 | J36: 3.4 | K36: 3.5 | T36: =IF(D36="","",COUNTA($D$13:D36)) -> 17
B37: =IF(D37="","",COUNTA($D$13:D37)) -> 18 | C37: Grassilage 2. u. folg. Aufwüchse unter 4 Wochen | D37: 350 | E37: 175 | F37: 137 | G37: 219 | H37: 10.04 | I37: 6.9 | J37: 3.7 | K37: 3.5 | T37: =IF(D37="","",COUNTA($D$13:D37)) -> 18
B38: =IF(D38="","",COUNTA($D$13:D38)) -> 19 | C38: Grassilage 2. u. folg. Aufwüchse 4-6 Wochen | D38: 350 | E38: 157 | F38: 131 | G38: 260 | H38: 9.62 | I38: 6.3 | J38: 3.7 | K38: 3.5 | T38: =IF(D38="","",COUNTA($D$13:D38)) -> 19
B39: =IF(D39="","",COUNTA($D$13:D39)) -> 20 | C39: Grassilage 2. u. folg. Aufwüchse 7-9 Wochen | D39: 350 | E39: 141 | F39: 123 | G39: 293 | H39: 9.3 | I39: 6.3 | J39: 3.7 | K39: 3.5 | T39: =IF(D39="","",COUNTA($D$13:D39)) -> 20
B40: =IF(D40="","",COUNTA($D$13:D40)) ->  | C40: Grassilage (klee- und kräuterreich) | T40: =IF(D40="","",COUNTA($D$13:D40)) -> 
B41: =IF(D41="","",COUNTA($D$13:D41)) -> 21 | C41: Grassilage 1. Aufwuchs Beg. Ähren-/Rispenschieben | D41: 350 | E41: 171 | F41: 149 | G41: 211 | H41: 10.75 | I41: 9.7 | J41: 4 | K41: 3.5 | T41: =IF(D41="","",COUNTA($D$13:D41)) -> 21
B42: =IF(D42="","",COUNTA($D$13:D42)) -> 22 | C42: Grassilage 1. Aufwuchs volles Ähren-/Rispenschieben | D42: 350 | E42: 157 | F42: 143 | G42: 246 | H42: 10.62 | I42: 9.7 | J42: 3.7 | K42: 3.5 | T42: =IF(D42="","",COUNTA($D$13:D42)) -> 22
B43: =IF(D43="","",COUNTA($D$13:D43)) -> 23 | C43: Grassilage 1. Aufwuchs Beginn der Blüte | D43: 350 | E43: 149 | F43: 131 | G43: 274 | H43: 9.84 | I43: 9.7 | J43: 3.7 | K43: 3.5 | T43: =IF(D43="","",COUNTA($D$13:D43)) -> 23
B44: =IF(D44="","",COUNTA($D$13:D44)) -> 24 | C44: Grassilage 1. Aufwuchs Mitte bis Ende der Blüte | D44: 350 | E44: 140 | F44: 120 | G44: 306 | H44: 9.59 | I44: 9.7 | J44: 3.7 | K44: 3.5 | T44: =IF(D44="","",COUNTA($D$13:D44)) -> 24
B45: =IF(D45="","",COUNTA($D$13:D45)) -> 25 | C45: Grassilage 2. u. folg. Aufwüchse unter 4 Wochen | D45: 350 | E45: 183 | F45: 142 | G45: 206 | H45: 10.43 | I45: 9.7 | J45: 3.7 | K45: 3.5 | T45: =IF(D45="","",COUNTA($D$13:D45)) -> 25
B46: =IF(D46="","",COUNTA($D$13:D46)) -> 26 | C46: Grassilage 2. u. folg. Aufwüchse 4-6 Wochen | D46: 350 | E46: 163 | F46: 134 | G46: 243 | H46: 9.8 | I46: 9.7 | J46: 3.7 | K46: 3.5 | T46: =IF(D46="","",COUNTA($D$13:D46)) -> 26
B47: =IF(D47="","",COUNTA($D$13:D47)) -> 27 | C47: Grassilage 2. u. folg. Aufwüchse 7-9 Wochen | D47: 350 | E47: 146 | F47: 122 | G47: 272 | H47: 9.13 | I47: 9.7 | J47: 3.7 | K47: 3.5 | T47: =IF(D47="","",COUNTA($D$13:D47)) -> 27
B48: =IF(D48="","",COUNTA($D$13:D48)) ->  | C48: Maissilagen | T48: =IF(D48="","",COUNTA($D$13:D48)) -> 
B49: =IF(D49="","",COUNTA($D$13:D49)) -> 28 | C49: Maissilage Beg. d. Teigreife, Kolbenant. mittel (35-45 %) | D49: 270 | E49: 89 | F49: 130 | G49: 211 | H49: 10.52 | I49: 3.3 | J49: 2.6 | K49: 3 | T49: =IF(D49="","",COUNTA($D$13:D49)) -> 28
B50: =IF(D50="","",COUNTA($D$13:D50)) -> 29 | C50: Maissilage Beg. d. Teigreife, Kolbenant. hoch (> 45 %) | D50: 290 | E50: 87 | F50: 133 | G50: 186 | H50: 10.8 | I50: 3.3 | J50: 2.6 | K50: 3 | T50: =IF(D50="","",COUNTA($D$13:D50)) -> 29
B51: =IF(D51="","",COUNTA($D$13:D51)) -> 30 | C51: Maissilage Ende d. Teigreife, Kolbenant. mittel (45-55 %) | D51: 350 | E51: 80 | F51: 131 | G51: 200 | H51: 10.71 | I51: 3.1 | J51: 2.3 | K51: 3 | T51: =IF(D51="","",COUNTA($D$13:D51)) -> 30
B52: =IF(D52="","",COUNTA($D$13:D52)) -> 31 | C52: Maissilage Ende d. Teigreife, Kolbenanteil hoch (> 55 %) | D52: 380 | E52: 79 | F52: 134 | G52: 176 | H52: 11.05 | I52: 2.9 | J52: 2.6 | K52: 3 | T52: =IF(D52="","",COUNTA($D$13:D52)) -> 31
B53: =IF(D53="","",COUNTA($D$13:D53)) ->  | C53: Rotklee-Gras-Gemenge-Silage | T53: =IF(D53="","",COUNTA($D$13:D53)) -> 
B54: =IF(D54="","",COUNTA($D$13:D54)) -> 32 | C54: Rotklee-Gras-Gemenge-Silage 1. Aufwuchs in der Knospe | D54: 350 | E54: 174 | F54: 146 | G54: 246 | H54: 10.86 | I54: 10.3 | J54: 3.7 | K54: 3.5 | T54: =IF(D54="","",COUNTA($D$13:D54)) -> 32
B55: =IF(D55="","",COUNTA($D$13:D55)) -> 33 | C55: Rotklee-Gras-Gemenge-Silage Beginn der Blüte | D55: 350 | E55: 166 | F55: 137 | G55: 277 | H55: 10.26 | I55: 10.3 | J55: 3.4 | K55: 3.5 | T55: =IF(D55="","",COUNTA($D$13:D55)) -> 33
B56: =IF(D56="","",COUNTA($D$13:D56)) -> 34 | C56: Rotklee-Gras-Gemenge-Silage Mitte bis Ende der Blüte | D56: 350 | E56: 140 | F56: 134 | G56: 306 | H56: 9.91 | I56: 10.3 | J56: 3.1 | K56: 3.5 | T56: =IF(D56="","",COUNTA($D$13:D56)) -> 34
B57: =IF(D57="","",COUNTA($D$13:D57)) -> 35 | C57: Rotklee-Gras-Gemenge-Silage 2. u. folg. Aufwüchse in der Knospe | D57: 350 | E57: 191 | F57: 143 | G57: 246 | H57: 9.8 | I57: 11.1 | J57: 4.3 | K57: 3.5 | T57: =IF(D57="","",COUNTA($D$13:D57)) -> 35
B58: =IF(D58="","",COUNTA($D$13:D58)) -> 36 | C58: Rotklee-Gras-Gemenge-Silage 2. u. folg. Aufwüchse Beginn der Blüte | D58: 350 | E58: 174 | F58: 126 | G58: 260 | H58: 9.14 | I58: 11.1 | J58: 3.7 | K58: 3.5 | T58: =IF(D58="","",COUNTA($D$13:D58)) -> 36
B59: =IF(D59="","",COUNTA($D$13:D59)) ->  | T59: =IF(D59="","",COUNTA($D$13:D59)) -> 
B60: =IF(D60="","",COUNTA($D$13:D60)) ->  | C60: GPS aus Gerste | T60: =IF(D60="","",COUNTA($D$13:D60)) -> 
B61: =IF(D61="","",COUNTA($D$13:D61)) -> 37 | C61: GPS aus Gerste in der Teigreife, Körneranteil ca. 50 % | D61: 450 | E61: 98 | F61: 124 | G61: 227 | H61: 9.58 | I61: 2.9 | J61: 2.9 | T61: =IF(D61="","",COUNTA($D$13:D61)) -> 37
B62: =IF(D62="","",COUNTA($D$13:D62)) ->  | C62: GPS aus Weizen | T62: =IF(D62="","",COUNTA($D$13:D62)) -> 
B63: =IF(D63="","",COUNTA($D$13:D63)) -> 38 | C63: GPS aus Weizen in der Teigreife, Körneranteil ca. 50 % | D63: 450 | E63: 93 | F63: 118 | G63: 227 | H63: 9.29 | I63: 2.2 | J63: 2.7 | T63: =IF(D63="","",COUNTA($D$13:D63)) -> 38
B64: =IF(D64="","",COUNTA($D$13:D64)) ->  | T64: =IF(D64="","",COUNTA($D$13:D64)) -> 
B65: =IF(D65="","",COUNTA($D$13:D65)) ->  | C65: Zuckerrübenblattsilage, sauber | T65: =IF(D65="","",COUNTA($D$13:D65)) -> 
B66: =IF(D66="","",COUNTA($D$13:D66)) -> 39 | C66: Zuckerrübenblattsilage, sauber | D66: 160 | E66: 150 | F66: 131 | G66: 156 | H66: 9.69 | I66: 13.1 | J66: 2.5 | T66: =IF(D66="","",COUNTA($D$13:D66)) -> 39
B67: =IF(D67="","",COUNTA($D$13:D67)) ->  | T67: =IF(D67="","",COUNTA($D$13:D67)) -> 
B68: =IF(D68="","",COUNTA($D$13:D68)) ->  | C68: III. Energiereiche Saftfutter | T68: =IF(D68="","",COUNTA($D$13:D68)) -> 
B69: =IF(D69="","",COUNTA($D$13:D69)) ->  | T69: =IF(D69="","",COUNTA($D$13:D69)) -> 
B70: =IF(D70="","",COUNTA($D$13:D70)) -> 40 | C70: Massenfutterrüben, sauber | D70: 120 | E70: 92 | F70: 147 | G70: 67 | H70: 12 | I70: 2.5 | J70: 2.5 | T70: =IF(D70="","",COUNTA($D$13:D70)) -> 40
B71: =IF(D71="","",COUNTA($D$13:D71)) -> 41 | C71: Gehaltsfutterrüben, sauber | D71: 150 | E71: 80 | F71: 150 | G71: 67 | H71: 11.93 | I71: 2 | J71: 2.7 | T71: =IF(D71="","",COUNTA($D$13:D71)) -> 41
B72: =IF(D72="","",COUNTA($D$13:D72)) -> 42 | C72: Maiskolbenschrotsilage | D72: 500 | E72: 90 | F72: 146 | G72: 144 | H72: 11.98 | I72: 1 | J72: 3.2 | T72: =IF(D72="","",COUNTA($D$13:D72)) -> 42
B73: =IF(D73="","",COUNTA($D$13:D73)) -> 43 | C73: CCM | D73: 600 | E73: 105 | F73: 161 | G73: 52 | H73: 12.88 | I73: 0.3 | J73: 3.2 | T73: =IF(D73="","",COUNTA($D$13:D73)) -> 43
B74: =IF(D74="","",COUNTA($D$13:D74)) -> 44 | C74: Biertreber, siliert | D74: 260 | E74: 250 | F74: 184 | G74: 193 | H74: 11.22 | I74: 3.5 | J74: 6.2 | K74: 3 | T74: =IF(D74="","",COUNTA($D$13:D74)) -> 44
B75: =IF(D75="","",COUNTA($D$13:D75)) -> 45 | C75: Preßschnitzel, siliert | D75: 220 | E75: 109 | F75: 159 | G75: 209 | H75: 11.86 | I75: 10.9 | J75: 0.9 | T75: =IF(D75="","",COUNTA($D$13:D75)) -> 45
B76: =IF(D76="","",COUNTA($D$13:D76)) -> 46 | C76: Apfeltrester | D76: 230 | E76: 47 | F76: 121 | G76: 215 | H76: 11.1 | I76: 7.9 | J76: 2.7 | K76: 1 | T76: =IF(D76="","",COUNTA($D$13:D76)) -> 46
B77: =IF(D77="","",COUNTA($D$13:D77)) ->  | T77: =IF(D77="","",COUNTA($D$13:D77)) -> 
B78: =IF(D78="","",COUNTA($D$13:D78)) ->  | C78: IV. Rauhfutter | T78: =IF(D78="","",COUNTA($D$13:D78)) -> 
B79: =IF(D79="","",COUNTA($D$13:D79)) ->  | T79: =IF(D79="","",COUNTA($D$13:D79)) -> 
B80: =IF(D80="","",COUNTA($D$13:D80)) ->  | C80: Heu Grünland 2-3 Nutzungen (obergrasbetont) | T80: =IF(D80="","",COUNTA($D$13:D80)) -> 
B81: =IF(D81="","",COUNTA($D$13:D81)) -> 47 | C81: Heu 1. Aufwuchs volles Ähren-/Rispenschieben | D81: 860 | E81: 106 | F81: =N81/D81*1000 -> 120.9302326 | G81: 294 | H81: 9.11 | I81: =4/0.86 -> 4.651162791 | J81: =2.4/0.86 -> 2.790697674 | K81: 9 | N81: 104 | T81: =IF(D81="","",COUNTA($D$13:D81)) -> 47
B82: =IF(D82="","",COUNTA($D$13:D82)) -> 48 | C82: Heu 1. Aufwuchs Beginn der Blüte | D82: 860 | E82: 94 | F82: 115.1162791 | G82: 324 | H82: 8.55 | I82: =3.8/0.86 -> 4.418604651 | J82: =2.2/0.86 -> 2.558139535 | K82: 9 | N82: 99 | T82: =IF(D82="","",COUNTA($D$13:D82)) -> 48
B83: =IF(D83="","",COUNTA($D$13:D83)) -> 49 | C83: Heu 1. Aufwuchs Mitte bis Ende der Blüte | D83: 860 | E83: 91 | F83: 108.1395349 | G83: 356 | H83: 7.99 | I83: =3.7/0.86 -> 4.302325581 | J83: 2.4 | K83: 9 | N83: 93 | T83: =IF(D83="","",COUNTA($D$13:D83)) -> 49
B84: =IF(D84="","",COUNTA($D$13:D84)) -> 50 | C84: Heu 2. u. folg. Aufwüchse unter 4 Wochen | D84: 860 | E84: 151 | F84: 134.8837209 | G84: 251 | H84: 9.66 | I84: =4.2/0.86 -> 4.88372093 | J84: =2.8/0.86 -> 3.255813953 | K84: 9 | N84: 116 | T84: =IF(D84="","",COUNTA($D$13:D84)) -> 50
B85: =IF(D85="","",COUNTA($D$13:D85)) -> 51 | C85: Heu 2. u. folg. Aufwüchse 4-6 Wochen | D85: 860 | E85: 133 | F85: 125.5813953 | G85: 284 | H85: 9.05 | I85: =4.2/0.86 -> 4.88372093 | J85: =2.8/0.86 -> 3.255813953 | K85: 9 | N85: 108 | T85: =IF(D85="","",COUNTA($D$13:D85)) -> 51
B86: =IF(D86="","",COUNTA($D$13:D86)) -> 52 | C86: Heu 2. u. folg. Aufwüchse 7-9 Wochen | D86: 860 | E86: 124 | F86: 116.2790698 | G86: 312 | H86: 8.3 | I86: =4.2/0.86 -> 4.88372093 | J86: =2.5/0.86 -> 2.906976744 | K86: 9 | N86: 100 | T86: =IF(D86="","",COUNTA($D$13:D86)) -> 52
B87: =IF(D87="","",COUNTA($D$13:D87)) ->  | C87: Rotklee-Gras-Heu | T87: =IF(D87="","",COUNTA($D$13:D87)) -> 
B88: =IF(D88="","",COUNTA($D$13:D88)) -> 53 | C88: Rotklee-Gras-Heu 1. Aufwuchs in der Knospe | D88: 860 | E88: 157 | F88: =N88/D88*1000 -> 137.2093023 | G88: 258 | H88: =8.06/0.86 -> 9.372093023 | I88: =11.5/0.86 -> 13.37209302 | J88: =2.4/0.86 -> 2.790697674 | K88: 9 | N88: 118 | T88: =IF(D88="","",COUNTA($D$13:D88)) -> 53
B89: =IF(D89="","",COUNTA($D$13:D89)) -> 54 | C89: Rotklee-Gras-Heu 1. Aufwuchs Beginn der Blüte | D89: 860 | E89: 155 | F89: =N89/D89*1000 -> 133.7209302 | G89: 300 | H89: 9.01 | I89: =11.5/0.86 -> 13.37209302 | J89: =2.2/0.86 -> 2.558139535 | K89: 9 | N89: 115 | T89: =IF(D89="","",COUNTA($D$13:D89)) -> 54
B90: =IF(D90="","",COUNTA($D$13:D90)) ->  | T90: =IF(D90="","",COUNTA($D$13:D90)) -> 
B91: =IF(D91="","",COUNTA($D$13:D91)) -> 55 | C91: Stroh (Gerste) | D91: 860 | E91: 39 | F91: =N91/D91*1000 -> 82.55813953 | G91: 442 | H91: 6.8 | I91: =3.3/0.86 -> 3.837209302 | J91: =0.8/0.86 -> 0.9302325581 | K91: 3 | N91: 71 | T91: =IF(D91="","",COUNTA($D$13:D91)) -> 55
B92: =IF(D92="","",COUNTA($D$13:D92)) ->  | T92: =IF(D92="","",COUNTA($D$13:D92)) -> 
B93: =IF(D93="","",COUNTA($D$13:D93)) ->  | C93: V. Kraftfutter | T93: =IF(D93="","",COUNTA($D$13:D93)) -> 
B94: =IF(D94="","",COUNTA($D$13:D94)) ->  | T94: =IF(D94="","",COUNTA($D$13:D94)) -> 
B95: =IF(D95="","",COUNTA($D$13:D95)) -> 56 | C95: Hafer, Körner | D95: 880 | E95: =M95*1000/$D95 -> 120.4545455 | F95: =N95/D95*1000 -> 139.7727273 | G95: =O95*1000/$D95 -> 115.9090909 | H95: 11.47727273 | I95: 1.25 | J95: 3.636363636 | K95: 18.5 | M95: 106 | N95: 123 | O95: 102 | P95: 10.1 | Q95: 1.1 | R95: 3.2 | T95: =IF(D95="","",COUNTA($D$13:D95)) -> 56
B96: =IF(D96="","",COUNTA($D$13:D96)) -> 57 | C96: Gerste, Körner | D96: 880 | E96: 123.8636364 | F96: 163.6363636 | G96: 56.81818182 | H96: 12.84090909 | I96: 0.6363636364 | J96: 3.863636364 | K96: 20.3 | M96: 109 | N96: 144 | O96: 50 | P96: 11.3 | Q96: 0.56 | R96: 3.4 | T96: =IF(D96="","",COUNTA($D$13:D96)) -> 57
B97: =IF(D97="","",COUNTA($D$13:D97)) -> 58 | C97: Roggen, Körner | D97: 880 | E97: 112.5 | F97: 167.0454545 | G97: 27.27272727 | H97: 13.30681818 | I97: 0.5681818182 | J97: 3.522727273 | K97: 20 | M97: 99 | N97: 147 | O97: 24 | P97: 11.71 | Q97: 0.5 | R97: 3.1 | T97: =IF(D97="","",COUNTA($D$13:D97)) -> 58
B98: =IF(D98="","",COUNTA($D$13:D98)) -> 59 | C98: Weizen, Körner | D98: 880 | E98: 137.5 | F98: 171.5909091 | G98: 29.54545455 | H98: 13.375 | I98: 0.4545454545 | J98: 3.75 | K98: 20.1 | M98: 121 | N98: 151 | O98: 26 | P98: 11.77 | Q98: 0.4 | R98: 3.3 | T98: =IF(D98="","",COUNTA($D$13:D98)) -> 59
B99: =IF(D99="","",COUNTA($D$13:D99)) -> 60 | C99: Triticale, Körner | D99: 880 | E99: 145.4545455 | F99: 170.4545455 | G99: 28.40909091 | H99: 13.125 | I99: 0.4545454545 | J99: 4.318181818 | K99: 19.8 | M99: 128 | N99: 150 | O99: 25 | P99: 11.55 | Q99: 0.4 | R99: 3.8 | T99: =IF(D99="","",COUNTA($D$13:D99)) -> 60
B100: =IF(D100="","",COUNTA($D$13:D100)) -> 61 | C100: Mais, Körner | D100: 880 | E100: 105.6818182 | F100: 163.6363636 | G100: 26.13636364 | H100: 13.29545455 | I100: 0.4545454545 | J100: 3.181818182 | K100: 24 | M100: 93 | N100: 144 | O100: 23 | P100: 11.7 | Q100: 0.4 | R100: 2.8 | T100: =IF(D100="","",COUNTA($D$13:D100)) -> 61
B101: =IF(D101="","",COUNTA($D$13:D101)) -> 62 | C101: Trockenschnitzel | D101: 900 | E101: 98.88888889 | F101: 155.5555556 | G101: 205 | H101: 11.93 | I101: 7.6 | J101: =R101*1000/$D101 -> 1 | K101: 20 | M101: 89 | N101: 140 | O101: 185 | P101: 11 | Q101: 7 | R101: 0.9 | T101: =IF(D101="","",COUNTA($D$13:D101)) -> 62
B102: =IF(D102="","",COUNTA($D$13:D102)) -> 63 | C102: Melasseschnitzel | D102: 910 | E102: 126.3736264 | F102: 163.7362637 | G102: =O102*1000/$D102 -> 157.1428571 | H102: 12.08791209 | I102: 10.98901099 | J102: 0.7692307692 | K102: 20.7 | M102: 115 | N102: 149 | O102: 143 | P102: 11 | Q102: 10 | R102: 0.7 | T102: =IF(D102="","",COUNTA($D$13:D102)) -> 63
B103: =IF(D103="","",COUNTA($D$13:D103)) -> 64 | C103: Weizenkleie | D103: 880 | E103: 160.2272727 | F103: 139.7727273 | G103: 134.0909091 | H103: 9.920454545 | I103: 1.477272727 | J103: 13.40909091 | K103: 20 | M103: 141 | N103: 123 | O103: 118 | P103: 8.73 | Q103: 1.3 | R103: 11.8 | T103: =IF(D103="","",COUNTA($D$13:D103)) -> 64
B104: =IF(D104="","",COUNTA($D$13:D104)) -> 65 | C104: Ackerbohnen, Samen | D104: 880 | E104: 297.7272727 | F104: 195.4545455 | G104: 88.63636364 | H104: 13.63636364 | I104: 1.363636364 | J104: 5.454545455 | K104: 30 | M104: 262 | N104: 172 | O104: 78 | P104: 12 | Q104: 1.2 | R104: 4.8 | T104: =IF(D104="","",COUNTA($D$13:D104)) -> 65
B105: =IF(D105="","",COUNTA($D$13:D105)) -> 66 | C105: Erbsen, Samen | D105: 880 | E105: 251.1363636 | F105: 187.5 | G105: 67.04545455 | H105: 13.40909091 | I105: 1.022727273 | J105: 4.659090909 | K105: 31.5 | M105: 221 | N105: 165 | O105: 59 | P105: 11.8 | Q105: 0.9 | R105: 4.1 | T105: =IF(D105="","",COUNTA($D$13:D105)) -> 66
B106: =IF(D106="","",COUNTA($D$13:D106)) -> 67 | C106: Sojaextraktionsschrot | D106: 880 | E106: 510.2272727 | F106: 307.9545455 | G106: 67.04545455 | H106: 13.75 | I106: 3.409090909 | J106: 7.272727273 | K106: 42 | M106: 449 | N106: 271 | O106: 59 | P106: 12.1 | Q106: 3 | R106: 6.4 | T106: =IF(D106="","",COUNTA($D$13:D106)) -> 67
B107: =IF(D107="","",COUNTA($D$13:D107)) -> 68 | C107: Rapsextraktionsschr. 00-Typ | D107: 890 | E107: 398.8764045 | F107: 219.1011236 | G107: 131.4606742 | H107: 11.98876404 | I107: 6.741573034 | J107: 13.14606742 | K107: 27 | M107: 355 | N107: 195 | O107: 117 | P107: 10.67 | Q107: 6 | R107: 11.7 | T107: =IF(D107="","",COUNTA($D$13:D107)) -> 68
B108: =IF(D108="","",COUNTA($D$13:D108)) -> 69 | C108: Leinkuchen/Expeller 4-8 % Fett | D108: 900 | E108: 373.3333333 | F108: 240 | G108: 106.6666667 | H108: 12.35555556 | I108: 4.111111111 | J108: 9 | M108: 336 | N108: 216 | O108: 96 | P108: 11.12 | Q108: 3.7 | R108: 8.1 | T108: =IF(D108="","",COUNTA($D$13:D108)) -> 69
B109: =IF(D109="","",COUNTA($D$13:D109)) -> 70 | C109: Luzernegrünmehl < 26 % Rohfaser | D109: 900 | E109: 217.7777778 | F109: 184.4444444 | G109: 222.2222222 | H109: 9.611111111 | I109: 17.11111111 | J109: 2.888888889 | M109: 196 | N109: 166 | O109: 200 | P109: 8.65 | Q109: 15.4 | R109: 2.6 | T109: =IF(D109="","",COUNTA($D$13:D109)) -> 70
B110: =IF(D110="","",COUNTA($D$13:D110)) ->  | T110: =IF(D110="","",COUNTA($D$13:D110)) -> 
B111: =IF(D111="","",COUNTA($D$13:D111)) ->  | C111: Mineralfutter | T111: =IF(D111="","",COUNTA($D$13:D111)) -> 
B112: =IF(D112="","",COUNTA($D$13:D112)) ->  | T112: =IF(D112="","",COUNTA($D$13:D112)) -> 
B113: =IF(D113="","",COUNTA($D$13:D113)) -> 71 | C113: Mineralfutter für Mutter-und Milchziegen Weidehaltung | D113: 960 | I113: =Q113*1000/$D113 -> 166.6666667 | J113: 52.08333333 | K113: 60 | Q113: 160 | R113: 50 | T113: =IF(D113="","",COUNTA($D$13:D113)) -> 71
B114: =IF(D114="","",COUNTA($D$13:D114)) -> 72 | C114: Mineralfutter für Mutter-und Milchziegen Stallperiode (Winter) | D114: 960 | I114: 197.9166667 | J114: 52.08333333 | K114: 60 | Q114: 190 | R114: 50 | T114: =IF(D114="","",COUNTA($D$13:D114)) -> 72
B115: =IF(D115="","",COUNTA($D$13:D115)) -> 73 | C115: Mineralfutter (Ziegenmast) | D115: 960 | I115: 218.75 | J115: 31.25 | K115: 65 | Q115: 210 | R115: 30 | T115: =IF(D115="","",COUNTA($D$13:D115)) -> 73
B116: =IF(D116="","",COUNTA($D$13:D116)) ->  | T116: =IF(D116="","",COUNTA($D$13:D116)) -> 
B117: =IF(D117="","",COUNTA($D$13:D117)) ->  | C117: Neue Futtermittel
B118: =IF(D118="","",COUNTA($D$13:D118)) -> 
B119: =IF(D119="","",COUNTA($D$13:D119)) ->  | T119: =IF(D119="","",COUNTA($D$13:D119)) -> 
B120: =IF(D120="","",COUNTA($D$13:D120)) ->  | T120: =IF(D120="","",COUNTA($D$13:D120)) -> 
B121: =IF(D121="","",COUNTA($D$13:D121)) ->  | T121: =IF(D121="","",COUNTA($D$13:D121)) -> 
T122: =IF(D122="","",COUNTA($D$13:D122)) -> 
T123: =IF(D123="","",COUNTA($D$13:D123)) -> 
T124: =IF(D124="","",COUNTA($D$13:D124)) -> 
T126: =IF(D126="","",COUNTA($D$13:D126)) -> 
T127: =IF(U127="","",COUNTA($C$13:U127)) -> 

Sheet Mutter- und Milchziegen
C1: Landesbetrieb Landwirtschaft Hessen | S1: Rationsberechnung für Mutter- und Milchziegen
C2: Kölnische Str. 48-50 | F2: Rationsberechnung für Ziegen
C3: 34117 Kassel | U3: Lebendgewicht in kg: | X3: 65 | AA3: Abkürzungen.: | AB3: Umsetzbare Energie: | AD3: ME in MJ
U4: Angestrebete Milchleistung in l: | X4: 3 | AB4: Frischmasse: | AD4: FM
C5: Kajo Hollmichel | U5: Angestrebte Fettprozente in %: | X5: 4 | AB5: Trockenmasse: | AD5: TM
C6: Tel.: 0561 7299-257 | U6: Angestrebte Eiweißgehalte in %: | X6: 3.5 | AB6: Rohprotein: | AD6: XP
C7: mobil: 0160-4755166 | AB7: nutzbares Rohprotein: | AD7: nXP
C8: E-mail: kajo.hollmichel@llh.hessen.de
D10: TM (%) | E10: Rohfaser | F10: Rohprotein | G10: nXP | H10: ME | I10: Ca | J10: P | K10: kg in der | L10: TM (kg) | M10: Rohfaser | N10: Rohprotein | O10: nXP | P10: ME | Q10: Ca | R10: P | S10: Preis | T10: in der Ration | U10: kg FM in der Ration | V10: % TM Futter in 1 kg TM | X10: TM | Y10: Rohfaser | Z10: Roh-protein | AA10: nutzbares Rohprot. | AB10: ME | AC10: Calcium (Ca) | AD10: Phosphor (P)
B11: Nr. | C11: Futtermittel | E11: g/kg TM | F11: g/kg TM | G11: g/kg TM | H11: MJ / kg TM | I11: g/kg TM | J11: g/kg TM | K11: Ration | M11: g in FM | N11: g in FM | O11: g in FM | P11: MJ in FM | Q11: g in FM | R11: g in FM | S11: €/dt | T11: € | W11: Einheit | X11: kg | Y11: g | Z11: g | AA11: g | AB11: MJ | AC11: g | AD11: g
B12: =IF($C12="","",VLOOKUP($C12,Futtermittel!$C$11:$T$143,18,FALSE)) -> 59 | C12: Weizen, Körner | D12: =IF($C12="","",VLOOKUP($B12,Futtermittel!$B$13:$K$130,3,FALSE)) -> 880 | E12: =IF($C12="","",VLOOKUP($B12,Futtermittel!$B$13:$K$130,6,FALSE)) -> 29.54545455 | F12: =IF($C12="","",VLOOKUP($B12,Futtermittel!$B$13:$K$130,4,FALSE)) -> 137.5 | G12: =IF($C12="","",VLOOKUP($B12,Futtermittel!$B$13:$K$130,5,FALSE)) -> 171.5909091 | H12: =IF($B12<1,0,VLOOKUP($B12,Futtermittel!$B$13:$K$130,7,TRUE)) -> 13.375 | I12: =IF($B12<1,0,VLOOKUP($B12,Futtermittel!$B$13:$K$130,8,TRUE)) -> 0.4545454545 | J12: =IF($B12<1,0,VLOOKUP($B12,Futtermittel!$B$13:$K$130,9,TRUE)) -> 3.75 | K12: =U12 -> 0.4 | L12: =IF(C12="","",K12*D12/1000) -> 0.352 | M12: =IF(C12="","",$K12*E12*$D12/1000) -> 10.4 | N12: =IF(C12="","",$K12*F12*$D12/1000) -> 48.4 | O12: =IF(C12="","",$K12*G12*$D12/1000) -> 60.4 | P12: =IF(C12="","",$K12*H12*$D12/1000) -> 4.708 | Q12: =IF(C12="","",$K12*I12*$D12/1000) -> 0.16 | R12: =IF(C12="","",$K12*J12*$D12/1000) -> 1.32 | S12: =IF($B12<1,0,VLOOKUP($B12,Futtermittel!$B$13:$K$130,10,TRUE)) -> 20.1 | T12: =(S12/100*K12)*SUM(Y$15:Y$24) -> 0.0804 | U12: 0.4 | V12: =IF(C12="","",U12*(D12/1000)/U$25) -> 0.212534718 | W12: in der ges. Ration | X12: =SUM($L$12:$L$24)*SUM(Y15:Y24) -> 1.6562 | Y12: =SUM($M$12:$M$24)*SUM(Y15:Y24) -> 478.07 | Z12: =SUM($N$12:$N$24)*SUM(Y15:Y24) -> 177.14 | AA12: =SUM($O$12:$O$24)*SUM(Y15:Y24) -> 196.425 | AB12: =SUM($P$12:$P$24)*SUM(Y15:Y24) -> 15.43075 | AC12: =SUM($Q$12:$Q$24)*SUM(Y15:Y24) -> 9.1675 | AD12: =SUM($R$12:$R$24)*SUM(Y15:Y24) -> 4.99
B13: =IF($C13="","",VLOOKUP($C13,Futtermittel!$C$11:$T$143,18,FALSE)) -> 1 | C13: Grünland 1. Aufwuchs Beg. Ähren-/Rispenschieben | D13: =IF($C13="","",VLOOKUP($B13,Futtermittel!$B$13:$K$130,3,FALSE)) -> 170 | E13: =IF($C13="","",VLOOKUP($B13,Futtermittel!$B$13:$K$130,6,FALSE)) -> 206 | F13: =IF($C13="","",VLOOKUP($B13,Futtermittel!$B$13:$K$130,4,FALSE)) -> 224 | G13: =IF($C13="","",VLOOKUP($B13,Futtermittel!$B$13:$K$130,5,FALSE)) -> 153 | H13: =IF($B13<1,0,VLOOKUP($B13,Futtermittel!$B$13:$K$130,7,TRUE)) -> 11.47 | I13: =IF($B13<1,0,VLOOKUP($B13,Futtermittel!$B$13:$K$130,8,TRUE)) -> 5.9 | J13: =IF($B13<1,0,VLOOKUP($B13,Futtermittel!$B$13:$K$130,9,TRUE)) -> 4.4 | K13: =U13 -> 2.5 | L13: =IF(C13="","",K13*D13/1000) -> 0.425 | M13: =IF(C13="","",$K13*E13*$D13/1000) -> 87.55 | N13: =IF(C13="","",$K13*F13*$D13/1000) -> 95.2 | O13: =IF(C13="","",$K13*G13*$D13/1000) -> 65.025 | P13: =IF(C13="","",$K13*H13*$D13/1000) -> 4.87475 | Q13: =IF(C13="","",$K13*I13*$D13/1000) -> 2.5075 | R13: =IF(C13="","",$K13*J13*$D13/1000) -> 1.87 | S13: =IF($B13<1,0,VLOOKUP($B13,Futtermittel!$B$13:$K$130,10,TRUE)) -> 1.4 | T13: 0.035 | U13: 2.5 | V13: =IF(C13="","",U13*(D13/1000)/U$25) -> 0.2566115203 | W13: je kg TM | Y13: =Y12/$X12/1000 -> 0.2886547518 | Z13: =Z12/$X12/1000 -> 0.1069556817 | AA13: =AA12/$X12/1000 -> 0.1185998068 | AB13: =AB12/X12 -> 9.316960512 | AC13: =AC12/$X12/1000 -> 0.005535261442 | AD13: =AD12/$X12/1000 -> 0.003012921145
B14: =IF($C14="","",VLOOKUP($C14,Futtermittel!$C$11:$T$143,18,FALSE)) -> 55 | C14: Stroh (Gerste) | D14: =IF($C14="","",VLOOKUP($B14,Futtermittel!$B$13:$K$130,3,FALSE)) -> 860 | E14: =IF($C14="","",VLOOKUP($B14,Futtermittel!$B$13:$K$130,6,FALSE)) -> 442 | F14: =IF($C14="","",VLOOKUP($B14,Futtermittel!$B$13:$K$130,4,FALSE)) -> 39 | G14: =IF($C14="","",VLOOKUP($B14,Futtermittel!$B$13:$K$130,5,FALSE)) -> 82.55813953 | H14: =IF($B14<1,0,VLOOKUP($B14,Futtermittel!$B$13:$K$130,7,TRUE)) -> 6.8 | I14: =IF($B14<1,0,VLOOKUP($B14,Futtermittel!$B$13:$K$130,8,TRUE)) -> 3.837209302 | J14: =IF($B14<1,0,VLOOKUP($B14,Futtermittel!$B$13:$K$130,9,TRUE)) -> 0.9302325581 | K14: =U14 -> 1 | L14: =IF(C14="","",K14*D14/1000) -> 0.86 | M14: =IF(C14="","",$K14*E14*$D14/1000) -> 380.12 | N14: =IF(C14="","",$K14*F14*$D14/1000) -> 33.54 | O14: =IF(C14="","",$K14*G14*$D14/1000) -> 71 | P14: =IF(C14="","",$K14*H14*$D14/1000) -> 5.848 | Q14: =IF(C14="","",$K14*I14*$D14/1000) -> 3.3 | R14: =IF(C14="","",$K14*J14*$D14/1000) -> 0.8 | S14: =IF($B14<1,0,VLOOKUP($B14,Futtermittel!$B$13:$K$130,10,TRUE)) -> 3 | T14: 0.03 | U14: 1 | V14: =IF(C14="","",U14*(D14/1000)/U$25) -> 0.5192609588 | W14: Leistungsstadium | X14: TM-Aufn. | Y14: Gruppe | Z14: XP | AA14: XP | AB14: ME | AC14: Ca | AD14: P
B15: =IF($C15="","",VLOOKUP($C15,Futtermittel!$C$11:$T$143,18,FALSE)) -> 66 | C15: Erbsen, Samen | D15: =IF($C15="","",VLOOKUP($B15,Futtermittel!$B$13:$K$130,3,FALSE)) -> 880 | E15: =IF($C15="","",VLOOKUP($B15,Futtermittel!$B$13:$K$130,6,FALSE)) -> 67.04545455 | F15: =IF($C15="","",VLOOKUP($B15,Futtermittel!$B$13:$K$130,4,FALSE)) -> 251.1363636 | G15: =IF($C15="","",VLOOKUP($B15,Futtermittel!$B$13:$K$130,5,FALSE)) -> 187.5 | H15: =IF($B15<1,0,VLOOKUP($B15,Futtermittel!$B$13:$K$130,7,TRUE)) -> 13.40909091 | I15: =IF($B15<1,0,VLOOKUP($B15,Futtermittel!$B$13:$K$130,8,TRUE)) -> 1.022727273 | J15: =IF($B15<1,0,VLOOKUP($B15,Futtermittel!$B$13:$K$130,9,TRUE)) -> 4.659090909 | K15: 0 | L15: 0 | M15: 0 | N15: 0 | O15: 0 | P15: 0 | Q15: 0 | R15: 0 | S15: =IF($B15<1,0,VLOOKUP($B15,Futtermittel!$B$13:$K$130,10,TRUE)) -> 31.5 | T15: 0 | U15: 0 | V15: 0 | W15: =C30 -> Milchziegen | X15: =D30 -> 2.7 | Z15: =N30 -> 0 | AA15: 0 | AB15: 0 | AC15: 0 | AD15: 0
B16: =IF($C16="","",VLOOKUP($C16,Futtermittel!$C$11:$T$143,18,FALSE)) -> 71 | C16: Mineralfutter für Mutter-und Milchziegen Weidehaltung | D16: =IF($C16="","",VLOOKUP($B16,Futtermittel!$B$13:$K$130,3,FALSE)) -> 960 | E16: =IF($C16="","",VLOOKUP($B16,Futtermittel!$B$13:$K$130,6,FALSE)) -> 0 | F16: =IF($C16="","",VLOOKUP($B16,Futtermittel!$B$13:$K$130,4,FALSE)) -> 0 | G16: =IF($C16="","",VLOOKUP($B16,Futtermittel!$B$13:$K$130,5,FALSE)) -> 0 | H16: =IF($B16<1,0,VLOOKUP($B16,Futtermittel!$B$13:$K$130,7,TRUE)) -> 0 | I16: =IF($B16<1,0,VLOOKUP($B16,Futtermittel!$B$13:$K$130,8,TRUE)) -> 166.6666667 | J16: =IF($B16<1,0,VLOOKUP($B16,Futtermittel!$B$13:$K$130,9,TRUE)) -> 52.08333333 | K16: 0.02 | L16: 0.0192 | M16: 0 | N16: 0 | O16: 0 | P16: 0 | Q16: 3.2 | R16: 1 | S16: =IF($B16<1,0,VLOOKUP($B16,Futtermittel!$B$13:$K$130,10,TRUE)) -> 60 | T16: 0.012 | U16: 0.02 | V16: 0.0115928028 | W16: =C31 -> 0 | X16: =D31 -> 0 | Z16: 0 | AA16: 0 | AB16: 0 | AC16: 0 | AD16: 0
B17: =IF($C17="","",VLOOKUP($C17,Futtermittel!$C$11:$T$143,18,FALSE)) ->  | D17: =IF($C17="","",VLOOKUP($B17,Futtermittel!$B$13:$K$130,3,FALSE)) ->  | E17: =IF($C17="","",VLOOKUP($B17,Futtermittel!$B$13:$K$130,6,FALSE)) ->  | F17: =IF($C17="","",VLOOKUP($B17,Futtermittel!$B$13:$K$130,4,FALSE)) ->  | G17: =IF($C17="","",VLOOKUP($B17,Futtermittel!$B$13:$K$130,5,FALSE)) ->  | H17: =IF($B17<1,0,VLOOKUP($B17,Futtermittel!$B$13:$K$130,7,TRUE)) -> 0 | I17: =IF($B17<1,0,VLOOKUP($B17,Futtermittel!$B$13:$K$130,8,TRUE)) -> 0 | J17: =IF($B17<1,0,VLOOKUP($B17,Futtermittel!$B$13:$K$130,9,TRUE)) -> 0 | K17: 0 | S17: =IF($B17<1,0,VLOOKUP($B17,Futtermittel!$B$13:$K$130,10,TRUE)) -> 0 | T17: 0 | U17: 0 | W17: güst, niedertragend | X17: 1.135 | Z17: 0 | AA17: 0 | AB17: 0 | AC17: 0 | AD17: =R32 -> 0
B18: =IF($C18="","",VLOOKUP($C18,Futtermittel!$C$11:$T$143,18,FALSE)) ->  | D18: =IF($C18="","",VLOOKUP($B18,Futtermittel!$B$13:$K$130,3,FALSE)) ->  | E18: =IF($C18="","",VLOOKUP($B18,Futtermittel!$B$13:$K$130,6,FALSE)) ->  | F18: =IF($C18="","",VLOOKUP($B18,Futtermittel!$B$13:$K$130,4,FALSE)) ->  | G18: =IF($C18="","",VLOOKUP($B18,Futtermittel!$B$13:$K$130,5,FALSE)) ->  | H18: =IF($B18<1,0,VLOOKUP($B18,Futtermittel!$B$13:$K$130,7,TRUE)) -> 0 | I18: =IF($B18<1,0,VLOOKUP($B18,Futtermittel!$B$13:$K$130,8,TRUE)) -> 0 | J18: =IF($B18<1,0,VLOOKUP($B18,Futtermittel!$B$13:$K$130,9,TRUE)) -> 0 | K18: 0 | S18: =IF($B18<1,0,VLOOKUP($B18,Futtermittel!$B$13:$K$130,10,TRUE)) -> 0 | T18: 0 | W18: hochtragend | X18: 1.535 | Y18: 1 | Z18: =N33 -> 175 | AA18: 175 | AB18: 14.1 | AC18: 6.5 | AD18: 4
B19: =IF($C19="","",VLOOKUP($C19,Futtermittel!$C$11:$T$143,18,FALSE)) ->  | D19: =IF($C19="","",VLOOKUP($B19,Futtermittel!$B$13:$K$130,3,FALSE)) ->  | E19: =IF($C19="","",VLOOKUP($B19,Futtermittel!$B$13:$K$130,6,FALSE)) ->  | F19: =IF($C19="","",VLOOKUP($B19,Futtermittel!$B$13:$K$130,4,FALSE)) ->  | G19: =IF($C19="","",VLOOKUP($B19,Futtermittel!$B$13:$K$130,5,FALSE)) ->  | H19: =IF($B19<1,0,VLOOKUP($B19,Futtermittel!$B$13:$K$130,7,TRUE)) -> 0 | I19: =IF($B19<1,0,VLOOKUP($B19,Futtermittel!$B$13:$K$130,8,TRUE)) -> 0 | J19: =IF($B19<1,0,VLOOKUP($B19,Futtermittel!$B$13:$K$130,9,TRUE)) -> 0 | K19: 0 | S19: =IF($B19<1,0,VLOOKUP($B19,Futtermittel!$B$13:$K$130,10,TRUE)) -> 0 | T19: 0 | W19: 0 | X19: 0 | Z19: 0 | AA19: 0 | AB19: 0 | AC19: 0 | AD19: 0
B20: =IF($C20="","",VLOOKUP($C20,Futtermittel!$C$11:$T$143,18,FALSE)) ->  | D20: =IF($C20="","",VLOOKUP($B20,Futtermittel!$B$13:$K$130,3,FALSE)) ->  | E20: =IF($C20="","",VLOOKUP($B20,Futtermittel!$B$13:$K$130,6,FALSE)) ->  | F20: =IF($C20="","",VLOOKUP($B20,Futtermittel!$B$13:$K$130,4,FALSE)) ->  | G20: =IF($C20="","",VLOOKUP($B20,Futtermittel!$B$13:$K$130,5,FALSE)) ->  | H20: =IF($B20<1,0,VLOOKUP($B20,Futtermittel!$B$13:$K$130,7,TRUE)) -> 0 | I20: =IF($B20<1,0,VLOOKUP($B20,Futtermittel!$B$13:$K$130,8,TRUE)) -> 0 | J20: =IF($B20<1,0,VLOOKUP($B20,Futtermittel!$B$13:$K$130,9,TRUE)) -> 0 | K20: 0 | S20: =IF($B20<1,0,VLOOKUP($B20,Futtermittel!$B$13:$K$130,10,TRUE)) -> 0 | T20: 0 | W20: laktierend | X20: 0
B21: =IF($C21="","",VLOOKUP($C21,Futtermittel!$C$11:$T$143,18,FALSE)) ->  | D21: =IF($C21="","",VLOOKUP($B21,Futtermittel!$B$13:$K$130,3,FALSE)) ->  | E21: =IF($C21="","",VLOOKUP($B21,Futtermittel!$B$13:$K$130,6,FALSE)) ->  | F21: =IF($C21="","",VLOOKUP($B21,Futtermittel!$B$13:$K$130,4,FALSE)) ->  | G21: =IF($C21="","",VLOOKUP($B21,Futtermittel!$B$13:$K$130,5,FALSE)) ->  | H21: =IF($B21<1,0,VLOOKUP($B21,Futtermittel!$B$13:$K$130,7,TRUE)) -> 0 | I21: =IF($B21<1,0,VLOOKUP($B21,Futtermittel!$B$13:$K$130,8,TRUE)) -> 0 | J21: =IF($B21<1,0,VLOOKUP($B21,Futtermittel!$B$13:$K$130,9,TRUE)) -> 0 | K21: 0 | S21: =IF($B21<1,0,VLOOKUP($B21,Futtermittel!$B$13:$K$130,10,TRUE)) -> 0 | T21: 0 | W21: 1.-8. W. mit einem Lamm | X21: 1.935 | Z21: 0 | AA21: 0 | AB21: =P36 -> 0 | AC21: 0 | AD21: 0
B22: =IF($C22="","",VLOOKUP($C22,Futtermittel!$C$11:$T$143,18,FALSE)) ->  | D22: =IF($C22="","",VLOOKUP($B22,Futtermittel!$B$13:$K$130,3,FALSE)) ->  | E22: =IF($C22="","",VLOOKUP($B22,Futtermittel!$B$13:$K$130,6,FALSE)) ->  | F22: =IF($C22="","",VLOOKUP($B22,Futtermittel!$B$13:$K$130,4,FALSE)) ->  | G22: =IF($C22="","",VLOOKUP($B22,Futtermittel!$B$13:$K$130,5,FALSE)) ->  | H22: =IF($B22<1,0,VLOOKUP($B22,Futtermittel!$B$13:$K$130,7,TRUE)) -> 0 | I22: =IF($B22<1,0,VLOOKUP($B22,Futtermittel!$B$13:$K$130,8,TRUE)) -> 0 | J22: =IF($B22<1,0,VLOOKUP($B22,Futtermittel!$B$13:$K$130,9,TRUE)) -> 0 | K22: 0 | S22: =IF($B22<1,0,VLOOKUP($B22,Futtermittel!$B$13:$K$130,10,TRUE)) -> 0 | T22: 0 | W22: 1.-8. W. mit zwei Lämmern | X22: 2.135 | Y22: 0 | Z22: 0 | AA22: 0 | AB22: 0 | AC22: 0 | AD22: 0
B23: =IF($C23="","",VLOOKUP($C23,Futtermittel!$C$11:$T$143,18,FALSE)) ->  | D23: =IF($C23="","",VLOOKUP($B23,Futtermittel!$B$13:$K$130,3,FALSE)) ->  | E23: =IF($C23="","",VLOOKUP($B23,Futtermittel!$B$13:$K$130,6,FALSE)) ->  | F23: =IF($C23="","",VLOOKUP($B23,Futtermittel!$B$13:$K$130,4,FALSE)) ->  | G23: =IF($C23="","",VLOOKUP($B23,Futtermittel!$B$13:$K$130,5,FALSE)) ->  | H23: =IF($B23<1,0,VLOOKUP($B23,Futtermittel!$B$13:$K$130,7,TRUE)) -> 0 | I23: =IF($B23<1,0,VLOOKUP($B23,Futtermittel!$B$13:$K$130,8,TRUE)) -> 0 | J23: =IF($B23<1,0,VLOOKUP($B23,Futtermittel!$B$13:$K$130,9,TRUE)) -> 0 | K23: 0 | S23: =IF($B23<1,0,VLOOKUP($B23,Futtermittel!$B$13:$K$130,10,TRUE)) -> 0 | T23: 0 | W23: 9.-16. W. mit einem Lamm | X23: 1.835 | Z23: 0 | AA23: 0 | AB23: 0 | AC23: 0 | AD23: 0
B24: =IF($C24="","",VLOOKUP($C24,Futtermittel!$C$11:$T$143,18,FALSE)) ->  | D24: =IF($C24="","",VLOOKUP($B24,Futtermittel!$B$13:$K$130,3,FALSE)) ->  | E24: =IF($C24="","",VLOOKUP($B24,Futtermittel!$B$13:$K$130,6,FALSE)) ->  | F24: =IF($C24="","",VLOOKUP($B24,Futtermittel!$B$13:$K$130,4,FALSE)) ->  | G24: =IF($C24="","",VLOOKUP($B24,Futtermittel!$B$13:$K$130,5,FALSE)) ->  | H24: =IF($B24<1,0,VLOOKUP($B24,Futtermittel!$B$13:$K$130,7,TRUE)) -> 0 | I24: =IF($B24<1,0,VLOOKUP($B24,Futtermittel!$B$13:$K$130,8,TRUE)) -> 0 | J24: =IF($B24<1,0,VLOOKUP($B24,Futtermittel!$B$13:$K$130,9,TRUE)) -> 0 | K24: 0 | S24: =IF($B24<1,0,VLOOKUP($B24,Futtermittel!$B$13:$K$130,10,TRUE)) -> 0 | T24: 0 | V24: =SUM(V12:V23) -> 1 | W24: 9.-16. W. mit zwei Lämmern | X24: 2.035 | Z24: 0 | AA24: 0 | AB24: 0 | AC24: 0 | AD24: 0
L25: TM (kg) | M25: Rohfaser | N25: Rohprotein | O25: nXP | P25: ME | Q25: Ca | R25: P | S25: P | T25: =SUM(T13:T24) -> 0.077 | U25: =L27 -> 1.6562 | W25: kg TM-Aufnahme | X25: Bilanz: | Z25: =Z12-SUM(Z15:Z24) -> 2.14 | AA25: =AA12-SUM(AA15:AA24) -> 21.425 | AB25: =AB12-SUM(AB15:AB24) -> 1.33075 | AC25: =AC12-SUM(AC15:AC24) -> 2.6675 | AD25: =AD12-SUM(AD15:AD24) -> 0.99
C26: in einem kg der Ration | K26: kg in der | M26: g/kg | N26: g/kg FM | O26: g/kg FM | P26: MJ / kg FM | Q26: g | R26: g
C27: in der Gesamtration | K27: Ration | L27: =SUM($L$12:$L$24) -> 1.6562 | M27: =SUM($M$12:$M$24) -> 478.07 | N27: =SUM($N$12:$N$24) -> 177.14 | O27: =SUM($O$12:$O$24) -> 196.425 | P27: =SUM($P$12:$P$24) -> 15.43075 | Q27: =SUM($Q$12:$Q$24) -> 9.1675 | R27: =SUM($R$12:$R$24) -> 4.99
C29: Bedarf | D29: 75 kg Ziege | E29: Erhaltung nach Bellof | F29: 90 | H29: 11.2
C30: Milchziegen | D30: =0.55+0.01*X3+(0.5*X4) -> 2.7 | E30: nach GfE 75 kg | F30: =(97-2*75+2*X3)+(88-21*3.5+21*X6)*X4 -> 341 | G30: =(97-2*75+2*X3)+(88-24*3.5+24*X6)*X4 -> 341 | H30: =(11.5-0.12/0.6*75+0.12/0.6*X3)+(5-0.6*4+0.6*X5)*X4 -> 24.5 | I30: =(1.75-0.05*75+0.05*X3)+2.55*X4 -> 8.9 | J30: =(1.4-0.05*75+0.05*X3)+1.7*X4 -> 6 | K30: =Y15 -> 0 | N30: =$K30*F30 -> 0 | O30: =$K30*G30 -> 0 | P30: =$K30*H30 -> 0 | Q30: =$K30*I30 -> 0 | R30: =$K30*J30 -> 0
G31: =F31 -> 0 | K31: 0 | N31: 0 | O31: 0 | P31: =$K31*H31 -> 0 | Q31: 0 | R31: 0
C32: güst, niedertragend | D32: =1.3-(75*0.0165-$X$3*0.0165) -> 1.135 | E32: nach GfE 75 kg | F32: =106-75+X$3 -> 96 | G32: 96 | H32: =11.5-0.12*75+0.12*X$3 -> 10.3 | I32: =3.1-0.05*75+0.05*X$3 -> 2.6 | J32: =2.1-0.05*75+0.05*X$3 -> 1.6 | K32: 0 | N32: 0 | O32: 0 | P32: 0 | Q32: 0 | R32: 0
C33: hochtragend | D33: =1.7-(75*0.0165-$X$3*0.0165) -> 1.535 | E33: nach GfE 75 kg | F33: =185-75+X$3 -> 175 | G33: 175 | H33: =15.3-0.12*75+0.12*X$3 -> 14.1 | I33: =7-0.05*75+0.05*X$3 -> 6.5 | J33: =4.5-0.05*75+0.05*X$3 -> 4 | K33: 1 | N33: 175 | O33: 175 | P33: 14.1 | Q33: 6.5 | R33: 4
G34: 0 | K34: 0 | N34: 0 | O34: 0 | P34: 0 | Q34: 0 | R34: 0
C35: laktierend | G35: 0 | K35: 0 | N35: 0 | O35: 0 | P35: 0 | Q35: 0 | R35: 0
C36: 1.-8. W. mit einem Lamm | D36: =2.1-(75*0.0165-$X$3*0.0165) -> 1.935 | E36: nach GfE 75 kg | F36: =270-75+X$3 -> 260 | G36: 260 | H36: =18.5-0.12*75+0.12*X$3 -> 17.3 | I36: =8-0.05*75+0.05*X$3 -> 7.5 | J36: =5.6-0.05*75+0.05*X$3 -> 5.1 | K36: =Y21 -> 0 | L36: =$K36*D36 -> 0 | N36: 0 | O36: 0 | P36: =$K36*H36 -> 0 | Q36: 0 | R36: 0
C37: 1.-8. W. mit zwei Lämmern | D37: =2.3-(75*0.0165-$X$3*0.0165) -> 2.135 | E37: nach GfE 75 kg | F37: =350-75+X$3 -> 340 | G37: 340 | H37: =22.5-0.12*75+0.12*X$3 -> 21.3 | I37: =11-0.05*75+0.05*X$3 -> 10.5 | J37: =7.9-0.05*75+0.05*X$3 -> 7.4 | K37: =Y22 -> 0 | L37: =$K37*D37 -> 0 | N37: 0 | O37: 0 | P37: 0 | Q37: 0 | R37: 0
C38: 9.-16. W. mit einem Lamm | D38: =2-(75*0.0165-$X$3*0.0165) -> 1.835 | E38: nach Quanz | F38: =170-75+X$3 -> 160 | G38: 160 | H38: =16.7-0.12*75+0.12*X$3 -> 15.5 | I38: =11-0.05*75+0.05*X$3 -> 10.5 | J38: =6-0.05*75+0.05*X$3 -> 5.5 | K38: =Y23 -> 0 | L38: =$K38*D38 -> 0 | N38: 0 | O38: 0 | P38: 0 | Q38: 0 | R38: 0
C39: 9.-16. W. mit zwei Lämmern | D39: =2.2-(75*0.0165-$X$3*0.0165) -> 2.035 | E39: nach Quanz | F39: =200-75+X$3 -> 190 | G39: 190 | H39: =22.4-0.12*75+0.12*X$3 -> 21.2 | I39: =14-0.05*75+0.05*X$3 -> 13.5 | J39: =8-0.05*75+0.05*X$3 -> 7.5 | K39: =Y24 -> 0 | L39: =$K39*D39 -> 0 | N39: 0 | O39: 0 | P39: 0 | Q39: 0 | R39: 0
C40: Bilanz | L40: =SUM(L31:L38)-L27 -> -1.6562 | N40: -2.14 | P40: -1.33075 | Q40: -2.6675 | R40: -0.99

Sheet Bocklämmermast
C1: Landesbetrieb Landwirtschaft Hessen | S1: Rationsberechnung für die Bocklämmermast
C2: Kölnische Str. 48-50 | F2: Rationsberechnung für Ziegen
C3: 34117 Kassel | AA3: Abkürzungen.: | AB3: Umsetzbare Energie: | AD3: ME in MJ
AB4: Frischmasse: | AD4: FM
C5: Kajo Hollmichel | AB5: Trockenmasse: | AD5: TM
C6: Tel.: 0561 7299-257 | AB6: Rohprotein: | AD6: XP
C7: mobil: 0160-4755166 | AB7: nutzbares Rohprotein: | AD7: nXP
C8: E-mail: kajo.hollmichel@llh.hessen.de | AB8: Tageszunahmen: | AD8: TZ
D10: TM (%) | E10: Rohfaser | F10: Rohprotein | G10: nXP | H10: ME | I10: Ca | J10: P | K10: kg in der | L10: TM (kg) | M10: Rohfaser | N10: Rohprotein | O10: nXP | P10: ME | Q10: Ca | R10: P | S10: Preis | T10: in der Ration | U10: kg FM in der Ration | V10: % TM Futter in 1 kg TM | X10: TM | Y10: Rohfaser | Z10: Roh-protein | AA10: nutzbares Rohprot. | AB10: ME | AC10: Calcium (Ca) | AD10: Phosphor (P)
B11: Nr. | C11: Futtermittel | E11: g/kg TM | F11: g/kg TM | G11: g/kg TM | H11: MJ / kg TM | I11: g/kg TM | J11: g/kg TM | K11: Ration | M11: g in FM | N11: g in FM | O11: g in FM | P11: MJ in FM | Q11: g in FM | R11: g in FM | S11: €/dt | T11: € | W11: Einheit | X11: kg | Y11: g | Z11: g | AA11: g | AB11: MJ | AC11: g | AD11: g
B12: =IF($C12="","",VLOOKUP($C12,Futtermittel!$C$11:$T$143,18,FALSE)) -> 59 | C12: Weizen, Körner | D12: =IF($C12="","",VLOOKUP($B12,Futtermittel!$B$13:$K$130,3,FALSE)) -> 880 | E12: =IF($C12="","",VLOOKUP($B12,Futtermittel!$B$13:$K$130,6,FALSE)) -> 29.54545455 | F12: =IF($C12="","",VLOOKUP($B12,Futtermittel!$B$13:$K$130,4,FALSE)) -> 137.5 | G12: =IF($C12="","",VLOOKUP($B12,Futtermittel!$B$13:$K$130,5,FALSE)) -> 171.5909091 | H12: =IF($B12<1,0,VLOOKUP($B12,Futtermittel!$B$13:$K$130,7,TRUE)) -> 13.375 | I12: =IF($B12<1,0,VLOOKUP($B12,Futtermittel!$B$13:$K$130,8,TRUE)) -> 0.4545454545 | J12: =IF($B12<1,0,VLOOKUP($B12,Futtermittel!$B$13:$K$130,9,TRUE)) -> 3.75 | K12: =U12 -> 0.65 | L12: =IF(C12="","",K12*D12/1000) -> 0.572 | M12: =IF(C12="","",$K12*E12*$D12/1000) -> 16.9 | N12: =IF(C12="","",$K12*F12*$D12/1000) -> 78.65 | O12: =IF(C12="","",$K12*G12*$D12/1000) -> 98.15 | P12: =IF(C12="","",$K12*H12*$D12/1000) -> 7.6505 | Q12: =IF(C12="","",$K12*I12*$D12/1000) -> 0.26 | R12: =IF(C12="","",$K12*J12*$D12/1000) -> 2.145 | S12: =IF($B12<1,0,VLOOKUP($B12,Futtermittel!$B$13:$K$130,10,TRUE)) -> 20.1 | T12: =(S12/100*K12)*SUM(Y$15:Y$24) -> 0.13065 | U12: 0.65 | V12: =IF(C12="","",U12*(D12/1000)/U$26) -> 0.3409632809 | W12: in der ges. Ration | X12: =SUM($L$12:$L$25)*SUM(Y15:Y25) -> 1.6776 | Y12: =SUM($M$12:$M$25)*SUM(Y15:Y25) -> 405.044 | Z12: =SUM($N$12:$N$25)*SUM(Y15:Y25) -> 196.874 | AA12: =SUM($O$12:$O$25)*SUM(Y15:Y25) -> 217.374 | AB12: =SUM($P$12:$P$25)*SUM(Y15:Y25) -> 17.00866 | AC12: =SUM($Q$12:$Q$25)*SUM(Y15:Y25) -> 7.4072 | AD12: =SUM($R$12:$R$25)*SUM(Y15:Y25) -> 4.8802
B13: =IF($C13="","",VLOOKUP($C13,Futtermittel!$C$11:$T$143,18,FALSE)) -> 1 | C13: Grünland 1. Aufwuchs Beg. Ähren-/Rispenschieben | D13: =IF($C13="","",VLOOKUP($B13,Futtermittel!$B$13:$K$130,3,FALSE)) -> 170 | E13: =IF($C13="","",VLOOKUP($B13,Futtermittel!$B$13:$K$130,6,FALSE)) -> 206 | F13: =IF($C13="","",VLOOKUP($B13,Futtermittel!$B$13:$K$130,4,FALSE)) -> 224 | G13: =IF($C13="","",VLOOKUP($B13,Futtermittel!$B$13:$K$130,5,FALSE)) -> 153 | H13: =IF($B13<1,0,VLOOKUP($B13,Futtermittel!$B$13:$K$130,7,TRUE)) -> 11.47 | I13: =IF($B13<1,0,VLOOKUP($B13,Futtermittel!$B$13:$K$130,8,TRUE)) -> 5.9 | J13: =IF($B13<1,0,VLOOKUP($B13,Futtermittel!$B$13:$K$130,9,TRUE)) -> 4.4 | K13: 2.4 | L13: =IF(C13="","",K13*D13/1000) -> 0.408 | M13: =IF(C13="","",$K13*E13*$D13/1000) -> 84.048 | N13: =IF(C13="","",$K13*F13*$D13/1000) -> 91.392 | O13: =IF(C13="","",$K13*G13*$D13/1000) -> 62.424 | P13: =IF(C13="","",$K13*H13*$D13/1000) -> 4.67976 | Q13: =IF(C13="","",$K13*I13*$D13/1000) -> 2.4072 | R13: =IF(C13="","",$K13*J13*$D13/1000) -> 1.7952 | S13: =IF($B13<1,0,VLOOKUP($B13,Futtermittel!$B$13:$K$130,10,TRUE)) -> 1.4 | T13: 0.0336 | U13: 2.4 | V13: =IF(C13="","",U13*(D13/1000)/U$26) -> 0.243204578 | W13: je kg TM | Y13: =Y12/$X12/1000 -> 0.241442537 | Z13: =Z12/$X12/1000 -> 0.1173545541 | AA13: =AA12/$X12/1000 -> 0.129574392 | AB13: =AB12/X12 -> 10.13868622 | AC13: =AC12/$X12/1000 -> 0.004415355269 | AD13: =AD12/$X12/1000 -> 0.002909036719
B14: =IF($C14="","",VLOOKUP($C14,Futtermittel!$C$11:$T$143,18,FALSE)) -> 55 | C14: Stroh (Gerste) | D14: =IF($C14="","",VLOOKUP($B14,Futtermittel!$B$13:$K$130,3,FALSE)) -> 860 | E14: =IF($C14="","",VLOOKUP($B14,Futtermittel!$B$13:$K$130,6,FALSE)) -> 442 | F14: =IF($C14="","",VLOOKUP($B14,Futtermittel!$B$13:$K$130,4,FALSE)) -> 39 | G14: =IF($C14="","",VLOOKUP($B14,Futtermittel!$B$13:$K$130,5,FALSE)) -> 82.55813953 | H14: =IF($B14<1,0,VLOOKUP($B14,Futtermittel!$B$13:$K$130,7,TRUE)) -> 6.8 | I14: =IF($B14<1,0,VLOOKUP($B14,Futtermittel!$B$13:$K$130,8,TRUE)) -> 3.837209302 | J14: =IF($B14<1,0,VLOOKUP($B14,Futtermittel!$B$13:$K$130,9,TRUE)) -> 0.9302325581 | K14: 0.8 | L14: =IF(C14="","",K14*D14/1000) -> 0.688 | M14: =IF(C14="","",$K14*E14*$D14/1000) -> 304.096 | N14: =IF(C14="","",$K14*F14*$D14/1000) -> 26.832 | O14: =IF(C14="","",$K14*G14*$D14/1000) -> 56.8 | P14: =IF(C14="","",$K14*H14*$D14/1000) -> 4.6784 | Q14: =IF(C14="","",$K14*I14*$D14/1000) -> 2.64 | R14: =IF(C14="","",$K14*J14*$D14/1000) -> 0.64 | S14: =IF($B14<1,0,VLOOKUP($B14,Futtermittel!$B$13:$K$130,10,TRUE)) -> 3 | T14: 0.024 | U14: 0.8 | V14: =IF(C14="","",U14*(D14/1000)/U$26) -> 0.4101096805 | W14: Leistungsstadium | X14: TM-Aufn. | Y14: Gruppe | Z14: XP | AA14: XP | AB14: ME | AC14: Ca | AD14: P
B15: =IF($C15="","",VLOOKUP($C15,Futtermittel!$C$11:$T$143,18,FALSE)) -> 66 | C15: Erbsen, Samen | D15: =IF($C15="","",VLOOKUP($B15,Futtermittel!$B$13:$K$130,3,FALSE)) -> 880 | E15: =IF($C15="","",VLOOKUP($B15,Futtermittel!$B$13:$K$130,6,FALSE)) -> 67.04545455 | F15: =IF($C15="","",VLOOKUP($B15,Futtermittel!$B$13:$K$130,4,FALSE)) -> 251.1363636 | G15: =IF($C15="","",VLOOKUP($B15,Futtermittel!$B$13:$K$130,5,FALSE)) -> 187.5 | H15: =IF($B15<1,0,VLOOKUP($B15,Futtermittel!$B$13:$K$130,7,TRUE)) -> 13.40909091 | I15: =IF($B15<1,0,VLOOKUP($B15,Futtermittel!$B$13:$K$130,8,TRUE)) -> 1.022727273 | J15: =IF($B15<1,0,VLOOKUP($B15,Futtermittel!$B$13:$K$130,9,TRUE)) -> 4.659090909 | K15: 0 | L15: 0 | M15: 0 | N15: 0 | O15: 0 | P15: 0 | Q15: 0 | R15: 0 | S15: =IF($B15<1,0,VLOOKUP($B15,Futtermittel!$B$13:$K$130,10,TRUE)) -> 31.5 | T15: 0 | V15: 0 | W15: =C31 -> Lamm 10 kg 100 g TZ | X15: =D31 -> 0.45 | Z15: =N31 -> 0 | AA15: 0 | AB15: =P31 -> 0 | AC15: =Q31 -> 0 | AD15: =R31 -> 0
B16: =IF($C16="","",VLOOKUP($C16,Futtermittel!$C$11:$T$143,18,FALSE)) -> 73 | C16: Mineralfutter (Ziegenmast) | D16: =IF($C16="","",VLOOKUP($B16,Futtermittel!$B$13:$K$130,3,FALSE)) -> 960 | E16: =IF($C16="","",VLOOKUP($B16,Futtermittel!$B$13:$K$130,6,FALSE)) -> 0 | F16: =IF($C16="","",VLOOKUP($B16,Futtermittel!$B$13:$K$130,4,FALSE)) -> 0 | G16: =IF($C16="","",VLOOKUP($B16,Futtermittel!$B$13:$K$130,5,FALSE)) -> 0 | H16: =IF($B16<1,0,VLOOKUP($B16,Futtermittel!$B$13:$K$130,7,TRUE)) -> 0 | I16: =IF($B16<1,0,VLOOKUP($B16,Futtermittel!$B$13:$K$130,8,TRUE)) -> 218.75 | J16: =IF($B16<1,0,VLOOKUP($B16,Futtermittel!$B$13:$K$130,9,TRUE)) -> 31.25 | K16: 0.01 | L16: 0.0096 | M16: 0 | N16: 0 | O16: 0 | P16: 0 | Q16: 2.1 | R16: 0.3 | S16: =IF($B16<1,0,VLOOKUP($B16,Futtermittel!$B$13:$K$130,10,TRUE)) -> 65 | T16: 0.0065 | U16: 0.01 | V16: 0.005722460658 | W16: Lamm 10 kg 200 g TZ | X16: 0.62 | Z16: 0 | AA16: 0 | AB16: 0 | AC16: 0 | AD16: 0
B17: =IF($C17="","",VLOOKUP($C17,Futtermittel!$C$11:$T$143,18,FALSE)) ->  | D17: =IF($C17="","",VLOOKUP($B17,Futtermittel!$B$13:$K$130,3,FALSE)) ->  | E17: =IF($C17="","",VLOOKUP($B17,Futtermittel!$B$13:$K$130,6,FALSE)) ->  | F17: =IF($C17="","",VLOOKUP($B17,Futtermittel!$B$13:$K$130,4,FALSE)) ->  | G17: =IF($C17="","",VLOOKUP($B17,Futtermittel!$B$13:$K$130,5,FALSE)) ->  | H17: =IF($B17<1,0,VLOOKUP($B17,Futtermittel!$B$13:$K$130,7,TRUE)) -> 0 | I17: =IF($B17<1,0,VLOOKUP($B17,Futtermittel!$B$13:$K$130,8,TRUE)) -> 0 | J17: =IF($B17<1,0,VLOOKUP($B17,Futtermittel!$B$13:$K$130,9,TRUE)) -> 0 | K17: 0 | S17: =IF($B17<1,0,VLOOKUP($B17,Futtermittel!$B$13:$K$130,10,TRUE)) -> 0 | T17: 0 | U17: 0 | W17: 0 | X17: 0 | Z17: 0 | AA17: 0 | AB17: 0 | AC17: 0 | AD17: 0
B18: =IF($C18="","",VLOOKUP($C18,Futtermittel!$C$11:$T$143,18,FALSE)) ->  | D18: =IF($C18="","",VLOOKUP($B18,Futtermittel!$B$13:$K$130,3,FALSE)) ->  | E18: =IF($C18="","",VLOOKUP($B18,Futtermittel!$B$13:$K$130,6,FALSE)) ->  | F18: =IF($C18="","",VLOOKUP($B18,Futtermittel!$B$13:$K$130,4,FALSE)) ->  | G18: =IF($C18="","",VLOOKUP($B18,Futtermittel!$B$13:$K$130,5,FALSE)) ->  | H18: =IF($B18<1,0,VLOOKUP($B18,Futtermittel!$B$13:$K$130,7,TRUE)) -> 0 | I18: =IF($B18<1,0,VLOOKUP($B18,Futtermittel!$B$13:$K$130,8,TRUE)) -> 0 | J18: =IF($B18<1,0,VLOOKUP($B18,Futtermittel!$B$13:$K$130,9,TRUE)) -> 0 | K18: 0 | S18: =IF($B18<1,0,VLOOKUP($B18,Futtermittel!$B$13:$K$130,10,TRUE)) -> 0 | T18: 0 | W18: Lamm 20 kg 200 g TZ | X18: 1 | Z18: =N34 -> 0 | AA18: 0 | AB18: 0 | AC18: 0 | AD18: 0
B19: =IF($C19="","",VLOOKUP($C19,Futtermittel!$C$11:$T$143,18,FALSE)) ->  | D19: =IF($C19="","",VLOOKUP($B19,Futtermittel!$B$13:$K$130,3,FALSE)) ->  | E19: =IF($C19="","",VLOOKUP($B19,Futtermittel!$B$13:$K$130,6,FALSE)) ->  | F19: =IF($C19="","",VLOOKUP($B19,Futtermittel!$B$13:$K$130,4,FALSE)) ->  | G19: =IF($C19="","",VLOOKUP($B19,Futtermittel!$B$13:$K$130,5,FALSE)) ->  | H19: =IF($B19<1,0,VLOOKUP($B19,Futtermittel!$B$13:$K$130,7,TRUE)) -> 0 | I19: =IF($B19<1,0,VLOOKUP($B19,Futtermittel!$B$13:$K$130,8,TRUE)) -> 0 | J19: =IF($B19<1,0,VLOOKUP($B19,Futtermittel!$B$13:$K$130,9,TRUE)) -> 0 | K19: 0 | S19: =IF($B19<1,0,VLOOKUP($B19,Futtermittel!$B$13:$K$130,10,TRUE)) -> 0 | T19: 0 | W19: Lamm 20 kg 300 g TZ | X19: 1.27 | Z19: 0 | AA19: 0 | AB19: 0 | AC19: 0 | AD19: 0
B20: =IF($C20="","",VLOOKUP($C20,Futtermittel!$C$11:$T$143,18,FALSE)) ->  | D20: =IF($C20="","",VLOOKUP($B20,Futtermittel!$B$13:$K$130,3,FALSE)) ->  | E20: =IF($C20="","",VLOOKUP($B20,Futtermittel!$B$13:$K$130,6,FALSE)) ->  | F20: =IF($C20="","",VLOOKUP($B20,Futtermittel!$B$13:$K$130,4,FALSE)) ->  | G20: =IF($C20="","",VLOOKUP($B20,Futtermittel!$B$13:$K$130,5,FALSE)) ->  | H20: =IF($B20<1,0,VLOOKUP($B20,Futtermittel!$B$13:$K$130,7,TRUE)) -> 0 | I20: =IF($B20<1,0,VLOOKUP($B20,Futtermittel!$B$13:$K$130,8,TRUE)) -> 0 | J20: =IF($B20<1,0,VLOOKUP($B20,Futtermittel!$B$13:$K$130,9,TRUE)) -> 0 | K20: 0 | S20: =IF($B20<1,0,VLOOKUP($B20,Futtermittel!$B$13:$K$130,10,TRUE)) -> 0 | T20: 0 | W20: 0 | X20: 0 | Z20: 0 | AA20: 0 | AB20: 0 | AC20: 0 | AD20: 0
B21: =IF($C21="","",VLOOKUP($C21,Futtermittel!$C$11:$T$143,18,FALSE)) ->  | D21: =IF($C21="","",VLOOKUP($B21,Futtermittel!$B$13:$K$130,3,FALSE)) ->  | E21: =IF($C21="","",VLOOKUP($B21,Futtermittel!$B$13:$K$130,6,FALSE)) ->  | F21: =IF($C21="","",VLOOKUP($B21,Futtermittel!$B$13:$K$130,4,FALSE)) ->  | G21: =IF($C21="","",VLOOKUP($B21,Futtermittel!$B$13:$K$130,5,FALSE)) ->  | H21: =IF($B21<1,0,VLOOKUP($B21,Futtermittel!$B$13:$K$130,7,TRUE)) -> 0 | I21: =IF($B21<1,0,VLOOKUP($B21,Futtermittel!$B$13:$K$130,8,TRUE)) -> 0 | J21: =IF($B21<1,0,VLOOKUP($B21,Futtermittel!$B$13:$K$130,9,TRUE)) -> 0 | K21: 0 | S21: =IF($B21<1,0,VLOOKUP($B21,Futtermittel!$B$13:$K$130,10,TRUE)) -> 0 | T21: 0 | W21: Lamm 30 kg 200 g TZ | X21: 1.31 | Z21: 0 | AA21: 0 | AB21: 0 | AC21: 0 | AD21: 0
B22: =IF($C22="","",VLOOKUP($C22,Futtermittel!$C$11:$T$143,18,FALSE)) ->  | D22: =IF($C22="","",VLOOKUP($B22,Futtermittel!$B$13:$K$130,3,FALSE)) ->  | E22: =IF($C22="","",VLOOKUP($B22,Futtermittel!$B$13:$K$130,6,FALSE)) ->  | F22: =IF($C22="","",VLOOKUP($B22,Futtermittel!$B$13:$K$130,4,FALSE)) ->  | G22: =IF($C22="","",VLOOKUP($B22,Futtermittel!$B$13:$K$130,5,FALSE)) ->  | H22: =IF($B22<1,0,VLOOKUP($B22,Futtermittel!$B$13:$K$130,7,TRUE)) -> 0 | I22: =IF($B22<1,0,VLOOKUP($B22,Futtermittel!$B$13:$K$130,8,TRUE)) -> 0 | J22: =IF($B22<1,0,VLOOKUP($B22,Futtermittel!$B$13:$K$130,9,TRUE)) -> 0 | K22: 0 | S22: =IF($B22<1,0,VLOOKUP($B22,Futtermittel!$B$13:$K$130,10,TRUE)) -> 0 | T22: 0 | W22: Lamm 30 kg 300 g TZ | X22: 1.68 | Y22: 1 | Z22: 193 | AA22: 193 | AB22: 16.6 | AC22: 7.2 | AD22: 4.4
B23: =IF($C23="","",VLOOKUP($C23,Futtermittel!$C$11:$T$143,18,FALSE)) ->  | D23: =IF($C23="","",VLOOKUP($B23,Futtermittel!$B$13:$K$130,3,FALSE)) ->  | E23: =IF($C23="","",VLOOKUP($B23,Futtermittel!$B$13:$K$130,6,FALSE)) ->  | F23: =IF($C23="","",VLOOKUP($B23,Futtermittel!$B$13:$K$130,4,FALSE)) ->  | G23: =IF($C23="","",VLOOKUP($B23,Futtermittel!$B$13:$K$130,5,FALSE)) ->  | H23: =IF($B23<1,0,VLOOKUP($B23,Futtermittel!$B$13:$K$130,7,TRUE)) -> 0 | I23: =IF($B23<1,0,VLOOKUP($B23,Futtermittel!$B$13:$K$130,8,TRUE)) -> 0 | J23: =IF($B23<1,0,VLOOKUP($B23,Futtermittel!$B$13:$K$130,9,TRUE)) -> 0 | K23: =U23 -> 0 | L23: =IF(C23="","",K23*D23/1000) ->  | M23: =IF(C23="","",$K23*E23*$D23/1000) ->  | N23: =IF(C23="","",$K23*F23*$D23/1000) ->  | O23: =IF(C23="","",$K23*G23*$D23/1000) ->  | P23: =IF(C23="","",$K23*H23*$D23/1000) ->  | Q23: =IF(C23="","",$K23*I23*$D23/1000) ->  | R23: =IF(C23="","",$K23*J23*$D23/1000) ->  | S23: =IF($B23<1,0,VLOOKUP($B23,Futtermittel!$B$13:$K$130,10,TRUE)) -> 0 | T23: =(S23/100*K23)*SUM(Y$15:Y$24) -> 0 | W23: 0 | X23: 0 | Z23: 0 | AA23: 0 | AB23: 0 | AC23: 0 | AD23: 0
B24: =IF($C24="","",VLOOKUP($C24,Futtermittel!$C$11:$T$143,18,FALSE)) ->  | D24: =IF($C24="","",VLOOKUP($B24,Futtermittel!$B$13:$K$130,3,FALSE)) ->  | E24: =IF($C24="","",VLOOKUP($B24,Futtermittel!$B$13:$K$130,6,FALSE)) ->  | F24: =IF($C24="","",VLOOKUP($B24,Futtermittel!$B$13:$K$130,4,FALSE)) ->  | G24: =IF($C24="","",VLOOKUP($B24,Futtermittel!$B$13:$K$130,5,FALSE)) ->  | H24: =IF($B24<1,0,VLOOKUP($B24,Futtermittel!$B$13:$K$130,7,TRUE)) -> 0 | I24: =IF($B24<1,0,VLOOKUP($B24,Futtermittel!$B$13:$K$130,8,TRUE)) -> 0 | J24: =IF($B24<1,0,VLOOKUP($B24,Futtermittel!$B$13:$K$130,9,TRUE)) -> 0 | K24: =U24 -> 0 | L24: =IF(C24="","",K24*D24/1000) ->  | M24: =IF(C24="","",$K24*E24*$D24/1000) ->  | N24: =IF(C24="","",$K24*F24*$D24/1000) ->  | O24: =IF(C24="","",$K24*G24*$D24/1000) ->  | P24: =IF(C24="","",$K24*H24*$D24/1000) ->  | Q24: =IF(C24="","",$K24*I24*$D24/1000) ->  | R24: =IF(C24="","",$K24*J24*$D24/1000) ->  | S24: =IF($B24<1,0,VLOOKUP($B24,Futtermittel!$B$13:$K$130,10,TRUE)) -> 0 | T24: =(S24/100*K24)*SUM(Y$15:Y$24) -> 0 | W24: Lamm 40 kg 200 g TZ | X24: 1.6 | Z24: 0 | AA24: 0 | AB24: 0 | AC24: 0 | AD24: 0
B25: =IF($C25="","",VLOOKUP($C25,Futtermittel!$C$11:$T$143,18,FALSE)) ->  | D25: =IF($C25="","",VLOOKUP($B25,Futtermittel!$B$13:$K$130,3,FALSE)) ->  | E25: =IF($C25="","",VLOOKUP($B25,Futtermittel!$B$13:$K$130,6,FALSE)) ->  | F25: =IF($C25="","",VLOOKUP($B25,Futtermittel!$B$13:$K$130,4,FALSE)) ->  | G25: =IF($C25="","",VLOOKUP($B25,Futtermittel!$B$13:$K$130,5,FALSE)) ->  | H25: =IF($B25<1,0,VLOOKUP($B25,Futtermittel!$B$13:$K$130,7,TRUE)) -> 0 | I25: =IF($B25<1,0,VLOOKUP($B25,Futtermittel!$B$13:$K$130,8,TRUE)) -> 0 | J25: =IF($B25<1,0,VLOOKUP($B25,Futtermittel!$B$13:$K$130,9,TRUE)) -> 0 | K25: =U25 -> 0 | L25: =IF(C25="","",K25*D25/1000) ->  | M25: =IF(C25="","",$K25*E25*$D25/1000) ->  | N25: =IF(C25="","",$K25*F25*$D25/1000) ->  | O25: =IF(C25="","",$K25*G25*$D25/1000) ->  | P25: =IF(C25="","",$K25*H25*$D25/1000) ->  | Q25: =IF(C25="","",$K25*I25*$D25/1000) ->  | R25: =IF(C25="","",$K25*J25*$D25/1000) ->  | S25: =IF($B25<1,0,VLOOKUP($B25,Futtermittel!$B$13:$K$130,10,TRUE)) -> 0 | T25: =(S25/100*K25)*SUM(Y$15:Y$24) -> 0 | V25: =SUM(V13:V24) -> 0.6590367191 | W25: Lamm 40 kg 250 g TZ | X25: 1.82 | Z25: 0 | AA25: 0 | AB25: 0 | AC25: 0 | AD25: 0
L26: TM (kg) | M26: Rohfaser | N26: Rohprotein | O26: nXP | P26: ME | Q26: Ca | R26: P | S26: P | T26: =SUM(T13:T25) -> 0.0641 | U26: =L28 -> 1.6776 | W26: kg TM-Aufnahme | X26: Bilanz: | Z26: =Z12-SUM(Z16:Z25) -> 3.874 | AA26: =AA12-SUM(AA16:AA25) -> 24.374 | AB26: =AB12-SUM(AB16:AB25) -> 0.40866 | AC26: =AC12-SUM(AC16:AC25) -> 0.2072 | AD26: =AD12-SUM(AD16:AD25) -> 0.4802
C27: in einem kg der Ration | K27: kg in der | M27: g/kg | N27: g/kg FM | O27: g/kg FM | P27: MJ / kg FM | Q27: g | R27: g
C28: in der Gesamtration | K28: Ration | L28: =SUM($L$12:$L$25) -> 1.6776 | M28: =SUM($M$12:$M$25) -> 405.044 | N28: =SUM($N$12:$N$25) -> 196.874 | O28: =SUM($O$12:$O$25) -> 217.374 | P28: =SUM($P$12:$P$25) -> 17.00866 | Q28: =SUM($Q$12:$Q$25) -> 7.4072 | R28: =SUM($R$12:$R$25) -> 4.8802
C30: Bedarf
C31: Lamm 10 kg 100 g TZ | D31: 0.45 | E31: nach GfE | F31: 53 | G31: 53 | H31: 4.4 | I31: 2.2 | J31: 1.3 | K31: =Y15 -> 0 | L31: =$K31*D31 -> 0 | N31: =$K31*F31 -> 0 | O31: =$K31*G31 -> 0 | P31: =$K31*H31 -> 0 | Q31: =$K31*I31 -> 0 | R31: =$K31*J31 -> 0
C32: Lamm 10 kg 200 g TZ | D32: 0.62 | E32: nach GfE | F32: 97 | G32: 97 | H32: 6.2 | I32: 4 | J32: 2.3 | K32: 0 | L32: 0 | N32: 0 | O32: 0 | P32: 0 | Q32: 0 | R32: 0
K33: 0 | L33: 0 | N33: 0 | O33: 0 | P33: 0 | Q33: 0 | R33: 0
C34: Lamm 20 kg 200 g TZ | D34: 1 | E34: nach GfE | F34: 124 | G34: 124 | H34: 9.8 | I34: 4.6 | J34: 2.8 | K34: 0 | L34: 0 | N34: 0 | O34: 0 | P34: 0 | Q34: 0 | R34: 0
C35: Lamm 20 kg 300 g TZ | D35: 1.27 | E35: nach GfE | F35: 167 | G35: 167 | H35: 12.5 | I35: 6.6 | J35: 3.9 | K35: 0 | L35: 0 | N35: 0 | O35: 0 | P35: 0 | Q35: 0 | R35: 0
K36: 0 | L36: 0 | N36: 0 | O36: 0 | P36: 0 | Q36: 0 | R36: 0
C37: Lamm 30 kg 200 g TZ | D37: 1.31 | E37: nach GfE | F37: 145 | G37: 145 | H37: 13 | I37: 5.1 | J37: 3.2 | K37: 0 | L37: 0 | N37: 0 | O37: 0 | P37: 0 | Q37: 0 | R37: 0
C38: Lamm 30 kg 300 g TZ | D38: 1.68 | E38: nach GfE | F38: 193 | G38: 193 | H38: 16.6 | I38: 7.2 | J38: 4.4 | K38: 1 | L38: 1.68 | N38: 193 | O38: =$K38*G38 -> 193 | P38: 16.6 | Q38: 7.2 | R38: 4.4
K39: 0 | L39: 0 | N39: 0 | O39: =$K39*G39 -> 0 | P39: 0 | Q39: 0 | R39: 0
C40: Lamm 40 kg 200 g TZ | D40: 1.6 | E40: nach GfE | F40: 161 | G40: 161 | H40: 15.8 | I40: 5.5 | J40: 3.5 | K40: 0 | L40: =$K40*D40 -> 0 | N40: =$K40*F40 -> 0 | O40: =$K40*G40 -> 0 | P40: =$K40*H40 -> 0 | Q40: =$K40*I40 -> 0 | R40: =$K40*J40 -> 0
C41: Lamm 40 kg 250 g TZ | D41: 1.82 | E41: nach GfE | F41: 184 | G41: 184 | H41: 18 | I41: 6.6 | J41: 4.2 | K41: 0 | L41: 0 | N41: 0 | O41: =$K41*G41 -> 0 | P41: 0 | Q41: 0 | R41: 0
C42: Bilanz | L42: =SUM(L32:L39)-L28 -> 0.0024 | N42: -3.874 | P42: -0.40866 | Q42: -0.2072 | R42: -0.4802

Sheet Mast weibl. Ziegenlämmer
C1: Landesbetrieb Landwirtschaft Hessen | S1: Rationsberechnung für die weibliche Ziegenlämmermast
C2: Kölnische Str. 48-50 | F2: Rationsberechnung für Ziegen
C3: 34117 Kassel | AA3: Abkürzungen.: | AB3: Umsetzbare Energie: | AD3: ME in MJ
AB4: Frischmasse: | AD4: FM
C5: Kajo Hollmichel | AB5: Trockenmasse: | AD5: TM
C6: Tel.: 0561 7299-257 | AB6: Rohprotein: | AD6: XP
C7: mobil: 0160-4755166 | AB7: nutzbares Rohprotein: | AD7: nXP
C8: E-mail: kajo.hollmichel@llh.hessen.de | AB8: Tageszunahmen: | AD8: TZ
D10: TM (%) | E10: Rohfaser | F10: Rohprotein | G10: nXP | H10: ME | I10: Ca | J10: P | K10: kg in der | L10: TM (kg) | M10: Rohfaser | N10: Rohprotein | O10: nXP | P10: ME | Q10: Ca | R10: P | S10: Preis | T10: in der Ration | U10: kg FM in der Ration | V10: % TM Futter in 1 kg TM | X10: TM | Y10: Rohfaser | Z10: Roh-protein | AA10: nutzbares Rohprot. | AB10: ME | AC10: Calcium (Ca) | AD10: Phosphor (P)
B11: Nr. | C11: Futtermittel | E11: g/kg TM | F11: g/kg TM | G11: g/kg TM | H11: MJ / kg TM | I11: g/kg TM | J11: g/kg TM | K11: Ration | M11: g in FM | N11: g in FM | O11: g in FM | P11: MJ in FM | Q11: g in FM | R11: g in FM | S11: €/dt | T11: € | W11: Einheit | X11: kg | Y11: g | Z11: g | AA11: g | AB11: MJ | AC11: g | AD11: g
B12: =IF($C12="","",VLOOKUP($C12,Futtermittel!$C$11:$T$143,18,FALSE)) -> 59 | C12: Weizen, Körner | D12: =IF($C12="","",VLOOKUP($B12,Futtermittel!$B$13:$K$130,3,FALSE)) -> 880 | E12: =IF($C12="","",VLOOKUP($B12,Futtermittel!$B$13:$K$130,6,FALSE)) -> 29.54545455 | F12: =IF($C12="","",VLOOKUP($B12,Futtermittel!$B$13:$K$130,4,FALSE)) -> 137.5 | G12: =IF($C12="","",VLOOKUP($B12,Futtermittel!$B$13:$K$130,5,FALSE)) -> 171.5909091 | H12: =IF($B12<1,0,VLOOKUP($B12,Futtermittel!$B$13:$K$130,7,TRUE)) -> 13.375 | I12: =IF($B12<1,0,VLOOKUP($B12,Futtermittel!$B$13:$K$130,8,TRUE)) -> 0.4545454545 | J12: =IF($B12<1,0,VLOOKUP($B12,Futtermittel!$B$13:$K$130,9,TRUE)) -> 3.75 | K12: =U12 -> 0.8 | L12: =IF(C12="","",K12*D12/1000) -> 0.704 | M12: =IF(C12="","",$K12*E12*$D12/1000) -> 20.8 | N12: =IF(C12="","",$K12*F12*$D12/1000) -> 96.8 | O12: =IF(C12="","",$K12*G12*$D12/1000) -> 120.8 | P12: =IF(C12="","",$K12*H12*$D12/1000) -> 9.416 | Q12: =IF(C12="","",$K12*I12*$D12/1000) -> 0.32 | R12: =IF(C12="","",$K12*J12*$D12/1000) -> 2.64 | S12: =IF($B12<1,0,VLOOKUP($B12,Futtermittel!$B$13:$K$130,10,TRUE)) -> 20.1 | T12: =(S12/100*K12)*SUM(Y$15:Y$24) -> 0.1608 | U12: 0.8 | V12: =IF(C12="","",U12*(D12/1000)/U$25) -> 0.4479511326 | W12: in der ges. Ration | X12: =SUM($L$12:$L$24)*SUM(Y15:Y24) -> 1.5716 | Y12: =SUM($M$12:$M$24)*SUM(Y15:Y24) -> 359.916 | Z12: =SUM($N$12:$N$24)*SUM(Y15:Y24) -> 161.712 | AA12: =SUM($O$12:$O$24)*SUM(Y15:Y24) -> 203.61 | AB12: =SUM($P$12:$P$24)*SUM(Y15:Y24) -> 16.0443 | AC12: =SUM($Q$12:$Q$24)*SUM(Y15:Y24) -> 6.063 | AD12: =SUM($R$12:$R$24)*SUM(Y15:Y24) -> 4.328
B13: =IF($C13="","",VLOOKUP($C13,Futtermittel!$C$11:$T$143,18,FALSE)) -> 1 | C13: Grünland 1. Aufwuchs Beg. Ähren-/Rispenschieben | D13: =IF($C13="","",VLOOKUP($B13,Futtermittel!$B$13:$K$130,3,FALSE)) -> 170 | E13: =IF($C13="","",VLOOKUP($B13,Futtermittel!$B$13:$K$130,6,FALSE)) -> 206 | F13: =IF($C13="","",VLOOKUP($B13,Futtermittel!$B$13:$K$130,4,FALSE)) -> 224 | G13: =IF($C13="","",VLOOKUP($B13,Futtermittel!$B$13:$K$130,5,FALSE)) -> 153 | H13: =IF($B13<1,0,VLOOKUP($B13,Futtermittel!$B$13:$K$130,7,TRUE)) -> 11.47 | I13: =IF($B13<1,0,VLOOKUP($B13,Futtermittel!$B$13:$K$130,8,TRUE)) -> 5.9 | J13: =IF($B13<1,0,VLOOKUP($B13,Futtermittel!$B$13:$K$130,9,TRUE)) -> 4.4 | K13: 1 | L13: =IF(C13="","",K13*D13/1000) -> 0.17 | M13: =IF(C13="","",$K13*E13*$D13/1000) -> 35.02 | N13: =IF(C13="","",$K13*F13*$D13/1000) -> 38.08 | O13: =IF(C13="","",$K13*G13*$D13/1000) -> 26.01 | P13: =IF(C13="","",$K13*H13*$D13/1000) -> 1.9499 | Q13: =IF(C13="","",$K13*I13*$D13/1000) -> 1.003 | R13: =IF(C13="","",$K13*J13*$D13/1000) -> 0.748 | S13: =IF($B13<1,0,VLOOKUP($B13,Futtermittel!$B$13:$K$130,10,TRUE)) -> 1.4 | T13: 0.014 | U13: 1 | V13: =IF(C13="","",U13*(D13/1000)/U$25) -> 0.1081700178 | W13: je kg TM | Y13: =Y12/$X12/1000 -> 0.2290124714 | Z13: =Z12/$X12/1000 -> 0.1028964113 | AA13: =AA12/$X12/1000 -> 0.1295558666 | AB13: =AB12/X12 -> 10.20889539 | AC13: =AC12/$X12/1000 -> 0.003857851871 | AD13: =AD12/$X12/1000 -> 0.002753881395
B14: =IF($C14="","",VLOOKUP($C14,Futtermittel!$C$11:$T$143,18,FALSE)) -> 55 | C14: Stroh (Gerste) | D14: =IF($C14="","",VLOOKUP($B14,Futtermittel!$B$13:$K$130,3,FALSE)) -> 860 | E14: =IF($C14="","",VLOOKUP($B14,Futtermittel!$B$13:$K$130,6,FALSE)) -> 442 | F14: =IF($C14="","",VLOOKUP($B14,Futtermittel!$B$13:$K$130,4,FALSE)) -> 39 | G14: =IF($C14="","",VLOOKUP($B14,Futtermittel!$B$13:$K$130,5,FALSE)) -> 82.55813953 | H14: =IF($B14<1,0,VLOOKUP($B14,Futtermittel!$B$13:$K$130,7,TRUE)) -> 6.8 | I14: =IF($B14<1,0,VLOOKUP($B14,Futtermittel!$B$13:$K$130,8,TRUE)) -> 3.837209302 | J14: =IF($B14<1,0,VLOOKUP($B14,Futtermittel!$B$13:$K$130,9,TRUE)) -> 0.9302325581 | K14: 0.8 | L14: =IF(C14="","",K14*D14/1000) -> 0.688 | M14: =IF(C14="","",$K14*E14*$D14/1000) -> 304.096 | N14: =IF(C14="","",$K14*F14*$D14/1000) -> 26.832 | O14: =IF(C14="","",$K14*G14*$D14/1000) -> 56.8 | P14: =IF(C14="","",$K14*H14*$D14/1000) -> 4.6784 | Q14: =IF(C14="","",$K14*I14*$D14/1000) -> 2.64 | R14: =IF(C14="","",$K14*J14*$D14/1000) -> 0.64 | S14: =IF($B14<1,0,VLOOKUP($B14,Futtermittel!$B$13:$K$130,10,TRUE)) -> 3 | T14: 0.024 | U14: 0.8 | V14: =IF(C14="","",U14*(D14/1000)/U$25) -> 0.437770425 | W14: Leistungsstadium | X14: TM-Aufn. | Y14: Gruppe | Z14: XP | AA14: XP | AB14: ME | AC14: Ca | AD14: P
B15: =IF($C15="","",VLOOKUP($C15,Futtermittel!$C$11:$T$143,18,FALSE)) -> 66 | C15: Erbsen, Samen | D15: =IF($C15="","",VLOOKUP($B15,Futtermittel!$B$13:$K$130,3,FALSE)) -> 880 | E15: =IF($C15="","",VLOOKUP($B15,Futtermittel!$B$13:$K$130,6,FALSE)) -> 67.04545455 | F15: =IF($C15="","",VLOOKUP($B15,Futtermittel!$B$13:$K$130,4,FALSE)) -> 251.1363636 | G15: =IF($C15="","",VLOOKUP($B15,Futtermittel!$B$13:$K$130,5,FALSE)) -> 187.5 | H15: =IF($B15<1,0,VLOOKUP($B15,Futtermittel!$B$13:$K$130,7,TRUE)) -> 13.40909091 | I15: =IF($B15<1,0,VLOOKUP($B15,Futtermittel!$B$13:$K$130,8,TRUE)) -> 1.022727273 | J15: =IF($B15<1,0,VLOOKUP($B15,Futtermittel!$B$13:$K$130,9,TRUE)) -> 4.659090909 | K15: 0 | L15: 0 | M15: 0 | N15: 0 | O15: 0 | P15: 0 | Q15: 0 | R15: 0 | S15: =IF($B15<1,0,VLOOKUP($B15,Futtermittel!$B$13:$K$130,10,TRUE)) -> 31.5 | T15: 0 | U15: 0 | V15: 0 | W15: =C30 -> Lamm 10 kg 100 g TZ | X15: =D30 -> 0.445 | Z15: =N30 -> 0 | AA15: 0 | AB15: =P30 -> 0 | AC15: =Q30 -> 0 | AD15: =R30 -> 0
B16: =IF($C16="","",VLOOKUP($C16,Futtermittel!$C$11:$T$143,18,FALSE)) -> 73 | C16: Mineralfutter (Ziegenmast) | D16: =IF($C16="","",VLOOKUP($B16,Futtermittel!$B$13:$K$130,3,FALSE)) -> 960 | E16: =IF($C16="","",VLOOKUP($B16,Futtermittel!$B$13:$K$130,6,FALSE)) -> 0 | F16: =IF($C16="","",VLOOKUP($B16,Futtermittel!$B$13:$K$130,4,FALSE)) -> 0 | G16: =IF($C16="","",VLOOKUP($B16,Futtermittel!$B$13:$K$130,5,FALSE)) -> 0 | H16: =IF($B16<1,0,VLOOKUP($B16,Futtermittel!$B$13:$K$130,7,TRUE)) -> 0 | I16: =IF($B16<1,0,VLOOKUP($B16,Futtermittel!$B$13:$K$130,8,TRUE)) -> 218.75 | J16: =IF($B16<1,0,VLOOKUP($B16,Futtermittel!$B$13:$K$130,9,TRUE)) -> 31.25 | K16: 0.01 | L16: 0.0096 | M16: 0 | N16: 0 | O16: 0 | P16: 0 | Q16: 2.1 | R16: 0.3 | S16: =IF($B16<1,0,VLOOKUP($B16,Futtermittel!$B$13:$K$130,10,TRUE)) -> 65 | T16: 0.0065 | U16: 0.01 | V16: 0.006108424536 | W16: =C31 -> Lamm 10 kg 200 g TZ | X16: =D31 -> 0.635 | Z16: 0 | AA16: 0 | AB16: 0 | AC16: 0 | AD16: 0
B17: =IF($C17="","",VLOOKUP($C17,Futtermittel!$C$11:$T$143,18,FALSE)) ->  | D17: =IF($C17="","",VLOOKUP($B17,Futtermittel!$B$13:$K$130,3,FALSE)) ->  | E17: =IF($C17="","",VLOOKUP($B17,Futtermittel!$B$13:$K$130,6,FALSE)) ->  | F17: =IF($C17="","",VLOOKUP($B17,Futtermittel!$B$13:$K$130,4,FALSE)) ->  | G17: =IF($C17="","",VLOOKUP($B17,Futtermittel!$B$13:$K$130,5,FALSE)) ->  | H17: =IF($B17<1,0,VLOOKUP($B17,Futtermittel!$B$13:$K$130,7,TRUE)) -> 0 | I17: =IF($B17<1,0,VLOOKUP($B17,Futtermittel!$B$13:$K$130,8,TRUE)) -> 0 | J17: =IF($B17<1,0,VLOOKUP($B17,Futtermittel!$B$13:$K$130,9,TRUE)) -> 0 | K17: 0 | S17: =IF($B17<1,0,VLOOKUP($B17,Futtermittel!$B$13:$K$130,10,TRUE)) -> 0 | T17: 0 | U17: 0 | W17: 0 | X17: 0 | Z17: 0 | AB17: 0 | AC17: 0 | AD17: 0
B18: =IF($C18="","",VLOOKUP($C18,Futtermittel!$C$11:$T$143,18,FALSE)) ->  | D18: =IF($C18="","",VLOOKUP($B18,Futtermittel!$B$13:$K$130,3,FALSE)) ->  | E18: =IF($C18="","",VLOOKUP($B18,Futtermittel!$B$13:$K$130,6,FALSE)) ->  | F18: =IF($C18="","",VLOOKUP($B18,Futtermittel!$B$13:$K$130,4,FALSE)) ->  | G18: =IF($C18="","",VLOOKUP($B18,Futtermittel!$B$13:$K$130,5,FALSE)) ->  | H18: =IF($B18<1,0,VLOOKUP($B18,Futtermittel!$B$13:$K$130,7,TRUE)) -> 0 | I18: =IF($B18<1,0,VLOOKUP($B18,Futtermittel!$B$13:$K$130,8,TRUE)) -> 0 | J18: =IF($B18<1,0,VLOOKUP($B18,Futtermittel!$B$13:$K$130,9,TRUE)) -> 0 | K18: 0 | S18: =IF($B18<1,0,VLOOKUP($B18,Futtermittel!$B$13:$K$130,10,TRUE)) -> 0 | T18: 0 | W18: Lamm 20 kg 150 g TZ | X18: 0.88 | Z18: 0 | AA18: 0 | AB18: 0 | AC18: 0 | AD18: 0
B19: =IF($C19="","",VLOOKUP($C19,Futtermittel!$C$11:$T$143,18,FALSE)) ->  | D19: =IF($C19="","",VLOOKUP($B19,Futtermittel!$B$13:$K$130,3,FALSE)) ->  | E19: =IF($C19="","",VLOOKUP($B19,Futtermittel!$B$13:$K$130,6,FALSE)) ->  | F19: =IF($C19="","",VLOOKUP($B19,Futtermittel!$B$13:$K$130,4,FALSE)) ->  | G19: =IF($C19="","",VLOOKUP($B19,Futtermittel!$B$13:$K$130,5,FALSE)) ->  | H19: =IF($B19<1,0,VLOOKUP($B19,Futtermittel!$B$13:$K$130,7,TRUE)) -> 0 | I19: =IF($B19<1,0,VLOOKUP($B19,Futtermittel!$B$13:$K$130,8,TRUE)) -> 0 | J19: =IF($B19<1,0,VLOOKUP($B19,Futtermittel!$B$13:$K$130,9,TRUE)) -> 0 | K19: 0 | S19: =IF($B19<1,0,VLOOKUP($B19,Futtermittel!$B$13:$K$130,10,TRUE)) -> 0 | T19: 0 | W19: Lamm 20 kg 250 g TZ | X19: 1.17 | Z19: 0 | AA19: 0 | AB19: 0 | AC19: 0 | AD19: 0
B20: =IF($C20="","",VLOOKUP($C20,Futtermittel!$C$11:$T$143,18,FALSE)) ->  | D20: =IF($C20="","",VLOOKUP($B20,Futtermittel!$B$13:$K$130,3,FALSE)) ->  | E20: =IF($C20="","",VLOOKUP($B20,Futtermittel!$B$13:$K$130,6,FALSE)) ->  | F20: =IF($C20="","",VLOOKUP($B20,Futtermittel!$B$13:$K$130,4,FALSE)) ->  | G20: =IF($C20="","",VLOOKUP($B20,Futtermittel!$B$13:$K$130,5,FALSE)) ->  | H20: =IF($B20<1,0,VLOOKUP($B20,Futtermittel!$B$13:$K$130,7,TRUE)) -> 0 | I20: =IF($B20<1,0,VLOOKUP($B20,Futtermittel!$B$13:$K$130,8,TRUE)) -> 0 | J20: =IF($B20<1,0,VLOOKUP($B20,Futtermittel!$B$13:$K$130,9,TRUE)) -> 0 | K20: 0 | S20: =IF($B20<1,0,VLOOKUP($B20,Futtermittel!$B$13:$K$130,10,TRUE)) -> 0 | T20: 0 | W20: 0 | X20: 0 | Z20: =N35 -> 0 | AB20: 0 | AC20: 0 | AD20: 0
B21: =IF($C21="","",VLOOKUP($C21,Futtermittel!$C$11:$T$143,18,FALSE)) ->  | D21: =IF($C21="","",VLOOKUP($B21,Futtermittel!$B$13:$K$130,3,FALSE)) ->  | E21: =IF($C21="","",VLOOKUP($B21,Futtermittel!$B$13:$K$130,6,FALSE)) ->  | F21: =IF($C21="","",VLOOKUP($B21,Futtermittel!$B$13:$K$130,4,FALSE)) ->  | G21: =IF($C21="","",VLOOKUP($B21,Futtermittel!$B$13:$K$130,5,FALSE)) ->  | H21: =IF($B21<1,0,VLOOKUP($B21,Futtermittel!$B$13:$K$130,7,TRUE)) -> 0 | I21: =IF($B21<1,0,VLOOKUP($B21,Futtermittel!$B$13:$K$130,8,TRUE)) -> 0 | J21: =IF($B21<1,0,VLOOKUP($B21,Futtermittel!$B$13:$K$130,9,TRUE)) -> 0 | K21: 0 | S21: =IF($B21<1,0,VLOOKUP($B21,Futtermittel!$B$13:$K$130,10,TRUE)) -> 0 | T21: 0 | W21: Lamm 30 kg 200 g TZ | X21: 1.375 | Z21: 0 | AA21: 0 | AB21: 0 | AC21: 0 | AD21: 0
B22: =IF($C22="","",VLOOKUP($C22,Futtermittel!$C$11:$T$143,18,FALSE)) ->  | D22: =IF($C22="","",VLOOKUP($B22,Futtermittel!$B$13:$K$130,3,FALSE)) ->  | E22: =IF($C22="","",VLOOKUP($B22,Futtermittel!$B$13:$K$130,6,FALSE)) ->  | F22: =IF($C22="","",VLOOKUP($B22,Futtermittel!$B$13:$K$130,4,FALSE)) ->  | G22: =IF($C22="","",VLOOKUP($B22,Futtermittel!$B$13:$K$130,5,FALSE)) ->  | H22: =IF($B22<1,0,VLOOKUP($B22,Futtermittel!$B$13:$K$130,7,TRUE)) -> 0 | I22: =IF($B22<1,0,VLOOKUP($B22,Futtermittel!$B$13:$K$130,8,TRUE)) -> 0 | J22: =IF($B22<1,0,VLOOKUP($B22,Futtermittel!$B$13:$K$130,9,TRUE)) -> 0 | K22: 0 | S22: =IF($B22<1,0,VLOOKUP($B22,Futtermittel!$B$13:$K$130,10,TRUE)) -> 0 | T22: 0 | W22: Lamm 30 kg 250 g TZ | X22: 1.575 | Y22: 1 | Z22: 156 | AA22: 156 | AB22: 15.6 | AC22: 6.2 | AD22: 3.8
B23: =IF($C23="","",VLOOKUP($C23,Futtermittel!$C$11:$T$143,18,FALSE)) ->  | D23: =IF($C23="","",VLOOKUP($B23,Futtermittel!$B$13:$K$130,3,FALSE)) ->  | E23: =IF($C23="","",VLOOKUP($B23,Futtermittel!$B$13:$K$130,6,FALSE)) ->  | F23: =IF($C23="","",VLOOKUP($B23,Futtermittel!$B$13:$K$130,4,FALSE)) ->  | G23: =IF($C23="","",VLOOKUP($B23,Futtermittel!$B$13:$K$130,5,FALSE)) ->  | H23: =IF($B23<1,0,VLOOKUP($B23,Futtermittel!$B$13:$K$130,7,TRUE)) -> 0 | I23: =IF($B23<1,0,VLOOKUP($B23,Futtermittel!$B$13:$K$130,8,TRUE)) -> 0 | J23: =IF($B23<1,0,VLOOKUP($B23,Futtermittel!$B$13:$K$130,9,TRUE)) -> 0 | K23: 0 | S23: =IF($B23<1,0,VLOOKUP($B23,Futtermittel!$B$13:$K$130,10,TRUE)) -> 0 | T23: 0 | W23: 0 | X23: 0 | Z23: 0 | AA23: 0 | AB23: 0 | AC23: 0 | AD23: 0
B24: =IF($C24="","",VLOOKUP($C24,Futtermittel!$C$11:$T$143,18,FALSE)) ->  | D24: =IF($C24="","",VLOOKUP($B24,Futtermittel!$B$13:$K$130,3,FALSE)) ->  | E24: =IF($C24="","",VLOOKUP($B24,Futtermittel!$B$13:$K$130,6,FALSE)) ->  | F24: =IF($C24="","",VLOOKUP($B24,Futtermittel!$B$13:$K$130,4,FALSE)) ->  | G24: =IF($C24="","",VLOOKUP($B24,Futtermittel!$B$13:$K$130,5,FALSE)) ->  | H24: =IF($B24<1,0,VLOOKUP($B24,Futtermittel!$B$13:$K$130,7,TRUE)) -> 0 | I24: =IF($B24<1,0,VLOOKUP($B24,Futtermittel!$B$13:$K$130,8,TRUE)) -> 0 | J24: =IF($B24<1,0,VLOOKUP($B24,Futtermittel!$B$13:$K$130,9,TRUE)) -> 0 | K24: 0 | S24: =IF($B24<1,0,VLOOKUP($B24,Futtermittel!$B$13:$K$130,10,TRUE)) -> 0 | T24: 0 | V24: =SUM(V12:V23) -> 1 | W24: Lamm 40 kg 200 g TZ | X24: 1.765 | Z24: 0 | AA24: 0 | AB24: 0 | AC24: 0 | AD24: 0
L25: TM (kg) | M25: Rohfaser | N25: Rohprotein | O25: nXP | P25: ME | Q25: Ca | R25: P | S25: P | T25: =SUM(T13:T24) -> 0.0445 | U25: =L27 -> 1.5716 | W25: kg TM-Aufnahme | X25: Bilanz: | Z25: =Z12-SUM(Z16:Z24) -> 5.712 | AA25: =AA12-SUM(AA15:AA24) -> 47.61 | AB25: =AB12-SUM(AB16:AB24) -> 0.4443 | AC25: =AC12-SUM(AC16:AC24) -> -0.137 | AD25: =AD12-SUM(AD16:AD24) -> 0.528
C26: in einem kg der Ration | K26: kg in der | M26: g/kg | N26: g/kg FM | O26: g/kg FM | P26: MJ / kg FM | Q26: g | R26: g
C27: in der Gesamtration | K27: Ration | L27: =SUM($L$12:$L$24) -> 1.5716 | M27: =SUM($M$12:$M$24) -> 359.916 | N27: =SUM($N$12:$N$24) -> 161.712 | O27: =SUM($O$12:$O$24) -> 203.61 | P27: =SUM($P$12:$P$24) -> 16.0443 | Q27: =SUM($Q$12:$Q$24) -> 6.063 | R27: =SUM($R$12:$R$24) -> 4.328
C29: Bedarf
C30: Lamm 10 kg 100 g TZ | D30: =0.49/2+0.4/2 -> 0.445 | E30: nach GfE | F30: 48 | G30: 48 | H30: 4.4 | I30: 2.2 | J30: 1.3 | K30: =Y15 -> 0 | L30: =$K30*D30 -> 0 | N30: =$K30*F30 -> 0 | O30: =$K30*G30 -> 0 | P30: =$K30*H30 -> 0 | Q30: =$K30*I30 -> 0 | R30: =$K30*J30 -> 0
C31: Lamm 10 kg 200 g TZ | D31: =0.7/2+0.57/2 -> 0.635 | E31: nach GfE | F31: 85 | G31: 85 | H31: 6.3 | I31: 4 | J31: 2.3 | K31: =Y16 -> 0 | L31: 0 | N31: 0 | O31: 0 | P31: 0 | Q31: 0 | R31: 0
K32: =Y17 -> 0 | L32: 0 | N32: 0 | O32: 0 | P32: 0 | Q32: 0 | R32: 0
C33: Lamm 20 kg 150 g TZ | D33: =0.97/2+0.79/2 -> 0.88 | E33: nach GfE | F33: 92 | G33: 92 | H33: 8.7 | I33: 3.6 | J33: 2.2 | K33: =Y18 -> 0 | L33: 0 | N33: 0 | O33: 0 | P33: 0 | Q33: 0 | R33: 0
C34: Lamm 20 kg 250 g TZ | D34: =1.29/2+1.05/2 -> 1.17 | E34: nach GfE | F34: 131 | G34: 131 | H34: 11.6 | I34: 5.6 | J34: 3.3 | K34: 0 | L34: 0 | N34: 0 | O34: 0 | P34: 0 | Q34: 0 | R34: 0
K35: 0 | L35: 0 | N35: 0 | O35: 0 | P35: 0 | Q35: 0 | R35: 0
C36: Lamm 30 kg 200 g TZ | D36: =1.51/2+1.24/2 -> 1.375 | E36: nach GfE | F36: 138 | G36: 138 | H36: 13.6 | I36: 5.1 | J36: 3.2 | K36: 0 | L36: 0 | N36: 0 | O36: 0 | P36: 0 | Q36: 0 | R36: 0
C37: Lamm 30 kg 250 g TZ | D37: =1.73/2+1.42/2 -> 1.575 | E37: nach GfE | F37: 156 | G37: 156 | H37: 15.6 | I37: 6.2 | J37: 3.8 | K37: 1 | L37: 1.575 | N37: 156 | O37: =$K37*G37 -> 156 | P37: 15.6 | Q37: 6.2 | R37: 3.8
K38: 0 | L38: 0 | N38: 0 | O38: =$K38*G38 -> 0 | P38: 0 | Q38: 0 | R38: 0
C39: Lamm 40 kg 200 g TZ | D39: =1.94/2+1.59/2 -> 1.765 | E39: nach GfE | F39: 156 | G39: 156 | H39: 17.5 | I39: 5.5 | J39: 3.5 | K39: 0 | L39: 0 | N39: 0 | O39: =$K39*G39 -> 0 | P39: 0 | Q39: 0 | R39: 0
C40: Bilanz | L40: =SUM(L31:L38)-L27 -> 0.0034 | N40: -5.712 | P40: -0.4443 | Q40: 0.137 | R40: -0.528
